Workbook

Sheet Disclaimer
A1: About Concept
A2: Concept is a specialist energy and economics consultancy that provides services to clients in New Zealand, Australia and the wider Asia-Pacific region.
A3: Concept provides advice on energy sector policy, business analysis, restructuring, market design, regulatory issues, energy modelling, market analysis, and technical issues.
A4: Combining economic rigour, leading modelling & analytical skills, and practical backgrounds in the energy sector, Concept consultants are able to provide practical solutions to client problems based on robust analysis.
A5: For more information, visit www.concept.co.nz or email info@concept.co.nz.
A7: Disclaimer
A8: This statistical tool has been prepared by Concept Consulting for the Electricity Authority.
A9: The tool is in draft, pending review by the Authority.
A10: Concept and its staff shall not, and do not, accept any liability for errors or omissions in the model or for any consequences of reliance on its content or results.

Sheet Notes>>
A1: Introduction
A2: The tool enables users to obtain point and interval estimates of the accuracy of the DUML database, based on a randomised survey.
A3: For more information on the tool or the DUML database auditing process, please email jonathon.staite@ea.govt.nz.
A5: Instructions
A6: All inputs should be entered in the 'Data Input' sheet. You need not change any other sheet.
A7: First, enter information about the strata into the table in columns G and H.
A8: Provide the name of each stratum (column G), and that stratum's total wattage according to the DUML database (column H).
A9: Second, enter survey results into the table in columns B-E.
A10: For each area unit surveyed, there will be one row of data.
A11: Provide the stratum name in column B (which must match a stratum in column H). If the area unit sampled has a name or ID number, enter that in column C.
A12: Enter the observed wattage based on the survey in column D, and the theoretical wattage based on the DUML database in column E. (If the database was perfectly accurate, these two numbers would be the same.)
A13: Enter the estimated annual "on time" in cell J2. This is the total time in hours that the DUML database load is switched on in a year period. If this time is unknown assume 4271 hours (based on analysis of SCADA data that indicates an average on time of 11.7 hours per day).
A14: You may find the 'Clear Inputs' button useful for getting rid of the dummy data that is currently present.
A16: Once all inputs have been entered, click the button located in the 'Results' sheet. This will calculate the point and interval estimates, which will appear in red and green.
A17: Note that the calculation takes several minutes to complete.
A18: If you change any inputs, please click the button again to rerun the calculation.
A20: This model requires that users have Excel 2007 or later.
A21: You must enable macros.

Sheet Data input
A1: Sample # | B1: Stratum | C1: Area unit | D1: Survey wattage | E1: DUML database wattage | F1: check | G1: Stratum | H1: Total wattage from DUML database | J1: Estimated annual "on time" (hr) | L1: check | M1: check
A2: 1 | B2: CBD | D2: 10290 | E2: 10220 | F2: =IFERROR(D2/E2,"") -> 1.006849315 | G2: CBD | H2: 1000000 | J2: 4271 | L2: =IF(G2<>"",IF(COUNTIF(B2:B201,G2)<2,1,0),0) -> 0 | M2: =IF(SUMIF(B2:$B$201,G2,E2:$E$201)>H2,1,0) -> 0
A3: =IF(ISBLANK(B3),"",A2+1) -> 2 | B3: CBD | D3: 15450 | E3: 13200 | F3: =IFERROR(D3/E3,"") -> 1.170454545 | G3: Small town | H3: 200000 | L3: =IF(G3<>"",IF(COUNTIF(B3:B202,G3)<2,1,0),0) -> 0 | M3: =IF(SUMIF(B3:$B$201,G3,E3:$E$201)>H3,1,0) -> 0 | O3: Checks
A4: =IF(ISBLANK(B4),"",A3+1) -> 3 | B4: CBD | D4: 24500 | E4: 22040 | F4: 1.111615245 | L4: 0 | M4: =IF(SUMIF(B4:$B$201,G4,E4:$E$201)>H4,1,0) -> 0 | P4: missing data | Q4: =IF(COUNT(A2:A21)*2>COUNT(D2:E21),1,0) -> 0
A5: 4 | B5: CBD | D5: 19410 | E5: 18080 | F5: 1.073561947 | L5: 0 | M5: =IF(SUMIF(B5:$B$201,G5,E5:$E$201)>H5,1,0) -> 0 | P5: less than two samples for strata | Q5: =MAX(L2:L11) -> 0
A6: 5 | B6: CBD | D6: 24080 | E6: 20710 | F6: 1.162723322 | L6: 0 | M6: =IF(SUMIF(B6:$B$201,G6,E6:$E$201)>H6,1,0) -> 0 | P6: sampled wattage exceeds total wattage | Q6: =MAX(M2:M11) -> 0
A7: 6 | B7: CBD | D7: 28750 | E7: 28970 | F7: 0.9924059372 | L7: 0 | M7: =IF(SUMIF(B7:$B$201,G7,E7:$E$201)>H7,1,0) -> 0 | P7: Stratum has null total wattage | Q7: =IF(MIN(H2:H11)<=0,1,0) -> 0
A8: 7 | B8: CBD | D8: 19970 | E8: 20960 | F8: 0.9527671756 | L8: 0 | M8: =IF(SUMIF(B8:$B$201,G8,E8:$E$201)>H8,1,0) -> 0 | P8: constant difference between recorded and observed wattage for each area unit | Q8: =IF(MAX(F2:F201)=MIN(F2:F201),1,0) -> 0
A9: 8 | B9: CBD | D9: 37000 | E9: 36720 | F9: 1.007625272 | L9: 0 | M9: =IF(SUMIF(B9:$B$201,G9,E9:$E$201)>H9,1,0) -> 0 | P9: large difference between recorded and observed wattage for a area unit | Q9: =IF(MAX(F2:F201)>1.5,1,IF(MIN(F2:F201)<0.5,1,0)) -> 0
A10: 9 | B10: CBD | D10: 24130 | E10: 24000 | F10: 1.005416667 | L10: 0 | M10: =IF(SUMIF(B10:$B$201,G10,E10:$E$201)>H10,1,0) -> 0
A11: 10 | B11: CBD | D11: 28930 | E11: 28890 | F11: 1.001384562 | L11: 0 | M11: =IF(SUMIF(B11:$B$201,G11,E11:$E$201)>H11,1,0) -> 0
A12: 11 | B12: CBD | D12: 26060 | E12: 22300 | F12: 1.168609865
A13: 12 | B13: CBD | D13: 19900 | E13: 20430 | F13: 0.9740577582
A14: 13 | B14: CBD | D14: 48800 | E14: 46500 | F14: 1.049462366
A15: 14 | B15: CBD | D15: 11100 | E15: 10240 | F15: 1.083984375
A16: 15 | B16: CBD | D16: 6960 | E16: 6720 | F16: 1.035714286
A17: 16 | B17: CBD | D17: 8480 | E17: 8140 | F17: 1.041769042
A18: 17 | B18: Small town | D18: 28750 | E18: 28970 | F18: 0.9924059372
A19: 18 | B19: Small town | D19: 19970 | E19: 20960 | F19: 0.9527671756
A20: 19 | B20: Small town | D20: 37000 | E20: 36720 | F20: 1.007625272
A21: 20 | B21: Small town | D21: 24130 | E21: 24000 | F21: 1.005416667
F67: =IFERROR(D67/E67,"") -> 
A68: =IF(ISBLANK(B68),"",A67+1) -> 
F131: =IFERROR(D131/E131,"") -> 
A132: =IF(ISBLANK(B132),"",A131+1) -> 
F195: =IFERROR(D195/E195,"") -> 
A196: =IF(ISBLANK(B196),"",A195+1) -> 
A201: =IF(ISBLANK(B201),"",A200+1) -> 

Sheet Results
A1: Stratum | B1: Estimated wattage from survey (MW) | C1: Total wattage from DUML database (MW) | D1: Ratio
A2: =IF(ISBLANK('Data input'!G2),"",'Data input'!G2) -> CBD | B2: =IF(A2="","",(1/1000000)*VLOOKUP(A2,'Data input'!G$2:H$11,2,FALSE)*SUMIF('Data input'!B$2:B$201,A2,'Data input'!D$2:D$201)/SUMIF('Data input'!B$2:B$201,A2,'Data input'!E$2:E$201)) -> 1.046403644 | C2: =IF(A2="","",'Data input'!H2/1000000) -> 1 | D2: =IF(B2="","",B2/C2) -> 1.046403644 | F2: ="The point estimate of R is "&TEXT(D12,"00.0%")&" (as calculated in the table to the left)." -> The point estimate of R is 103.7% (as calculated in the table to the left).
A3: =IF(ISBLANK('Data input'!G3),"",'Data input'!G3) -> Small town | B3: =IF(A3="","",(1/1000000)*VLOOKUP(A3,'Data input'!G$2:H$11,2,FALSE)*SUMIF('Data input'!B$2:B$201,A3,'Data input'!D$2:D$201)/SUMIF('Data input'!B$2:B$201,A3,'Data input'!E$2:E$201)) -> 0.1985539991 | C3: =IF(A3="","",'Data input'!H3/1000000) -> 0.2 | D3: =IF(B3="","",B3/C3) -> 0.9927699955
A4: =IF(ISBLANK('Data input'!G4),"",'Data input'!G4) ->  | B4: =IF(A4="","",(1/1000000)*VLOOKUP(A4,'Data input'!G$2:H$11,2,FALSE)*SUMIF('Data input'!B$2:B$201,A4,'Data input'!D$2:D$201)/SUMIF('Data input'!B$2:B$201,A4,'Data input'!E$2:E$201)) ->  | C4: =IF(A4="","",'Data input'!H4/1000000) ->  | F4: ="A "&TEXT(Working!AF2,"00.0%")&" confidence interval for R is from "&TEXT(Working!AA2,"00.0%")&" to "&TEXT(Working!AB2,"00.0%")&"." -> A 95.0% confidence interval for R is from 101.3% to 107.0%.
A5: =IF(ISBLANK('Data input'!G5),"",'Data input'!G5) ->  | B5: =IF(A5="","",(1/1000000)*VLOOKUP(A5,'Data input'!G$2:H$11,2,FALSE)*SUMIF('Data input'!B$2:B$201,A5,'Data input'!D$2:D$201)/SUMIF('Data input'!B$2:B$201,A5,'Data input'!E$2:E$201)) ->  | C5: =IF(A5="","",'Data input'!H5/1000000) -> 
A6: =IF(ISBLANK('Data input'!G6),"",'Data input'!G6) ->  | B6: =IF(A6="","",(1/1000000)*VLOOKUP(A6,'Data input'!G$2:H$11,2,FALSE)*SUMIF('Data input'!B$2:B$201,A6,'Data input'!D$2:D$201)/SUMIF('Data input'!B$2:B$201,A6,'Data input'!E$2:E$201)) ->  | C6: =IF(A6="","",'Data input'!H6/1000000) -> 
A7: =IF(ISBLANK('Data input'!G7),"",'Data input'!G7) ->  | B7: =IF(A7="","",(1/1000000)*VLOOKUP(A7,'Data input'!G$2:H$11,2,FALSE)*SUMIF('Data input'!B$2:B$201,A7,'Data input'!D$2:D$201)/SUMIF('Data input'!B$2:B$201,A7,'Data input'!E$2:E$201)) ->  | C7: =IF(A7="","",'Data input'!H7/1000000) -> 
A8: =IF(ISBLANK('Data input'!G8),"",'Data input'!G8) ->  | B8: =IF(A8="","",(1/1000000)*VLOOKUP(A8,'Data input'!G$2:H$11,2,FALSE)*SUMIF('Data input'!B$2:B$201,A8,'Data input'!D$2:D$201)/SUMIF('Data input'!B$2:B$201,A8,'Data input'!E$2:E$201)) ->  | C8: =IF(A8="","",'Data input'!H8/1000000) ->  | F8: ="In absolute terms, true wattage is estimated to be "&ROUND(ABS(B12-C12),3)&" MW "&IF(B12>C12,"higher","lower")&" than the DUML database indicates." -> In absolute terms, true wattage is estimated to be 0.045 MW higher than the DUML database indicates.
A9: =IF(ISBLANK('Data input'!G9),"",'Data input'!G9) ->  | B9: =IF(A9="","",(1/1000000)*VLOOKUP(A9,'Data input'!G$2:H$11,2,FALSE)*SUMIF('Data input'!B$2:B$201,A9,'Data input'!D$2:D$201)/SUMIF('Data input'!B$2:B$201,A9,'Data input'!E$2:E$201)) ->  | C9: =IF(A9="","",'Data input'!H9/1000000) -> 
A10: =IF(ISBLANK('Data input'!G10),"",'Data input'!G10) ->  | B10: =IF(A10="","",(1/1000000)*VLOOKUP(A10,'Data input'!G$2:H$11,2,FALSE)*SUMIF('Data input'!B$2:B$201,A10,'Data input'!D$2:D$201)/SUMIF('Data input'!B$2:B$201,A10,'Data input'!E$2:E$201)) ->  | C10: =IF(A10="","",'Data input'!H10/1000000) ->  | F10: ="A "&TEXT(Working!AF2,"00.0%")&" confidence interval for (true wattage - DUML database wattage) is from "&TEXT((Working!AA2-1)*C12,"0.000")&" to "&TEXT((Working!AB2-1)*C12,"0.000")&" MW." -> A 95.0% confidence interval for (true wattage - DUML database wattage) is from 0.016 to 0.084 MW.
A11: =IF(ISBLANK('Data input'!G11),"",'Data input'!G11) ->  | B11: =IF(A11="","",(1/1000000)*VLOOKUP(A11,'Data input'!G$2:H$11,2,FALSE)*SUMIF('Data input'!B$2:B$201,A11,'Data input'!D$2:D$201)/SUMIF('Data input'!B$2:B$201,A11,'Data input'!E$2:E$201)) ->  | C11: =IF(A11="","",'Data input'!H11/1000000) -> 
A12: Total | B12: =SUM(B2:B11) -> 1.244957643 | C12: =SUM(C2:C11) -> 1.2 | D12: =B12/C12 -> 1.037464702 | F12: ="In absolute terms, total annual consumption is estimated to be "&ROUND(ABS((B12-C12)*'Data input'!J2),1)&" MWh "&IF(B12>C12,"higher","lower")&" than the DUML database indicates." -> In absolute terms, total annual consumption is estimated to be 192 MWh higher than the DUML database indicates.
F14: ="A "&TEXT(Working!AF2,"00.0%")&" confidence interval for (true annual consumption - DUML database annual consumption) is from "&TEXT((Working!AA2-1)*C12*'Data input'!J2,"0.0")&" to "&TEXT((Working!AB2-1)*C12*'Data input'!J2,"0.0")&" MWh." -> A 95.0% confidence interval for (true annual consumption - DUML database annual consumption) is from 67.5 to 357.2 MWh.

Sheet Working
A1: Sample # | B1: Stratum | C1: Area unit | D1: Survey wattage | E1: DUML database wattage | G1: Stratum | H1: Estimated wattage from survey (MW) | I1: Total wattage from DUML database (MW) | J1: Ratio | L1: N | M1: Bootstrap replication | N1: Less than point estimate? | P1: N | Q1: Jackknife replication | R1: Cubed deviation | S1: Squared deviation | U1: Bias | V1: Acceleration | X1: Lower alpha | Y1: Upper alpha | AA1: =TEXT(Working!AF2,"00.0%")&" CI: Lower bound" -> 95.0% CI: Lower bound | AB1: Upper bound | AD1: n | AE1: reps | AF1: desired confidence level
A2: 1 | B2: =IF(A2="","",'Data input'!B2) -> CBD | C2: =IF($A2="","",VLOOKUP($A2,'Data input'!$A$2:$E$201,COLUMN(C1),FALSE)) -> 0 | D2: =IF($A2="","",VLOOKUP($A2,'Data input'!$A$2:$E$201,COLUMN(D1),FALSE)) -> 10290 | E2: =IF($A2="","",VLOOKUP($A2,'Data input'!$A$2:$E$201,COLUMN(E1),FALSE)) -> 10220 | G2: =IF(ISBLANK('Data input'!G2),"",'Data input'!G2) -> CBD | H2: =IF(G2="","",(1/1000000)*VLOOKUP(G2,'Data input'!G$2:H$11,2,FALSE)*SUMIF(B$2:B$201,G2,D$2:D$201)/SUMIF(B$2:B$201,G2,E$2:E$201)) -> 1.046403644 | I2: =IF(G2="","",'Data input'!H2/1000000) -> 1 | J2: =IF(H2="","",H2/I2) -> 1.046403644 | L2: =IF(M2="","",ROW(L2)-1) -> 1 | M2: 1.064718799 | N2: =IF(L2="","",IF(M2<Results!D$12,1,0)) -> 0 | P2: =IF(A2="","",ROW(A2)-1) -> 1 | Q2: 1.038492061 | R2: =IF(P2="","",(AVERAGE(Q$2:Q$201)-Q2)^3) -> -1.052366739e-09 | S2: =IF(P2="","",(AVERAGE(Q$2:Q$201)-Q2)^2) -> 1.034613344e-06 | U2: =NORMINV(AVERAGE(N2:N50001),0,1) -> 0.04400552478 | V2: =SUM(R2:R201)/(6*(SUM(S2:S201))^1.5) -> 0.0180837663 | X2: =NORMDIST($U2+($U2+NORMINV(X4,0,1))/(1-$V2*($U2+NORMINV(X4,0,1))),0,1,1) -> 0.03531941511 | Y2: =NORMDIST($U2+($U2+NORMINV(Y4,0,1))/(1-$V2*($U2+NORMINV(Y4,0,1))),0,1,1) -> 0.9831368233 | AA2: =PERCENTILE(M$2:M$50001,X2) -> 1.013164925 | AB2: =PERCENTILE(M$2:M$50001,Y2) -> 1.069699984 | AD2: =MAX('Data input'!A2:A201) -> 20 | AE2: 20000 | AF2: 0.95
A3: 2 | B3: =IF(A3="","",'Data input'!B3) -> CBD | C3: =IF($A3="","",VLOOKUP($A3,'Data input'!$A$2:$E$201,COLUMN(C2),FALSE)) -> 0 | D3: =IF($A3="","",VLOOKUP($A3,'Data input'!$A$2:$E$201,COLUMN(D2),FALSE)) -> 15450 | E3: =IF($A3="","",VLOOKUP($A3,'Data input'!$A$2:$E$201,COLUMN(E2),FALSE)) -> 13200 | G3: =IF(ISBLANK('Data input'!G3),"",'Data input'!G3) -> Small town | H3: =IF(G3="","",(1/1000000)*VLOOKUP(G3,'Data input'!G$2:H$11,2,FALSE)*SUMIF(B$2:B$201,G3,D$2:D$201)/SUMIF(B$2:B$201,G3,E$2:E$201)) -> 0.1985539991 | I3: =IF(G3="","",'Data input'!H3/1000000) -> 0.2 | J3: =IF(H3="","",H3/I3) -> 0.9927699955 | L3: =IF(M3="","",ROW(L3)-1) -> 2 | M3: 1.036495125 | N3: =IF(L3="","",IF(M3<Results!D$12,1,0)) -> 1 | P3: =IF(A3="","",ROW(A3)-1) -> 2 | Q3: 1.033265023 | R3: =IF(P3="","",(AVERAGE(Q$2:Q$201)-Q3)^3) -> 7.461204186e-08 | S3: =IF(P3="","",(AVERAGE(Q$2:Q$201)-Q3)^2) -> 1.77230835e-05
A4: 3 | B4: =IF(A4="","",'Data input'!B4) -> CBD | C4: =IF($A4="","",VLOOKUP($A4,'Data input'!$A$2:$E$201,COLUMN(C3),FALSE)) -> 0 | D4: =IF($A4="","",VLOOKUP($A4,'Data input'!$A$2:$E$201,COLUMN(D3),FALSE)) -> 24500 | E4: =IF($A4="","",VLOOKUP($A4,'Data input'!$A$2:$E$201,COLUMN(E3),FALSE)) -> 22040 | G4: =IF(ISBLANK('Data input'!G4),"",'Data input'!G4) ->  | H4: =IF(G4="","",(1/1000000)*VLOOKUP(G4,'Data input'!G$2:H$11,2,FALSE)*SUMIF(B$2:B$201,G4,D$2:D$201)/SUMIF(B$2:B$201,G4,E$2:E$201)) ->  | I4: =IF(G4="","",'Data input'!H4/1000000) ->  | L4: =IF(M4="","",ROW(L4)-1) -> 3 | M4: 1.020147102 | N4: =IF(L4="","",IF(M4<Results!D$12,1,0)) -> 1 | P4: 3 | Q4: 1.033675409 | R4: =IF(P4="","",(AVERAGE(Q$2:Q$201)-Q4)^3) -> 5.485002413e-08 | S4: =IF(P4="","",(AVERAGE(Q$2:Q$201)-Q4)^2) -> 1.443614433e-05 | W4: Naïve: | X4: =(1-Working!AF2)/2 -> 0.025 | Y4: =(1+Working!AF2)/2 -> 0.975 | AA4: =PERCENTILE(M$2:M$50001,X4) -> 1.011371177 | AB4: =PERCENTILE(M$2:M$50001,Y4) -> 1.067291728
A5: 4 | B5: =IF(A5="","",'Data input'!B5) -> CBD | C5: =IF($A5="","",VLOOKUP($A5,'Data input'!$A$2:$E$201,COLUMN(C4),FALSE)) -> 0 | D5: =IF($A5="","",VLOOKUP($A5,'Data input'!$A$2:$E$201,COLUMN(D4),FALSE)) -> 19410 | E5: =IF($A5="","",VLOOKUP($A5,'Data input'!$A$2:$E$201,COLUMN(E4),FALSE)) -> 18080 | G5: =IF(ISBLANK('Data input'!G5),"",'Data input'!G5) ->  | H5: =IF(G5="","",(1/1000000)*VLOOKUP(G5,'Data input'!G$2:H$11,2,FALSE)*SUMIF(B$2:B$201,G5,D$2:D$201)/SUMIF(B$2:B$201,G5,E$2:E$201)) ->  | I5: =IF(G5="","",'Data input'!H5/1000000) ->  | L5: 4 | M5: 1.02920452 | N5: =IF(L5="","",IF(M5<Results!D$12,1,0)) -> 1 | P5: 4 | Q5: 1.036186159 | R5: =IF(P5="","",(AVERAGE(Q$2:Q$201)-Q5)^3) -> 2.140420914e-09 | S5: 1.6608591e-06
A6: 5 | B6: =IF(A6="","",'Data input'!B6) -> CBD | C6: =IF($A6="","",VLOOKUP($A6,'Data input'!$A$2:$E$201,COLUMN(C5),FALSE)) -> 0 | D6: =IF($A6="","",VLOOKUP($A6,'Data input'!$A$2:$E$201,COLUMN(D5),FALSE)) -> 24080 | E6: =IF($A6="","",VLOOKUP($A6,'Data input'!$A$2:$E$201,COLUMN(E5),FALSE)) -> 20710 | G6: =IF(ISBLANK('Data input'!G6),"",'Data input'!G6) ->  | H6: =IF(G6="","",(1/1000000)*VLOOKUP(G6,'Data input'!G$2:H$11,2,FALSE)*SUMIF(B$2:B$201,G6,D$2:D$201)/SUMIF(B$2:B$201,G6,E$2:E$201)) ->  | I6: =IF(G6="","",'Data input'!H6/1000000) ->  | L6: 5 | M6: 1.018729953 | N6: =IF(L6="","",IF(M6<Results!D$12,1,0)) -> 1 | P6: 5 | Q6: 1.031140126 | R6: 2.542106728e-07 | S6: 4.012938648e-05
A7: 6 | B7: =IF(A7="","",'Data input'!B7) -> CBD | C7: =IF($A7="","",VLOOKUP($A7,'Data input'!$A$2:$E$201,COLUMN(C6),FALSE)) -> 0 | D7: =IF($A7="","",VLOOKUP($A7,'Data input'!$A$2:$E$201,COLUMN(D6),FALSE)) -> 28750 | E7: =IF($A7="","",VLOOKUP($A7,'Data input'!$A$2:$E$201,COLUMN(E6),FALSE)) -> 28970 | G7: =IF(ISBLANK('Data input'!G7),"",'Data input'!G7) ->  | H7: =IF(G7="","",(1/1000000)*VLOOKUP(G7,'Data input'!G$2:H$11,2,FALSE)*SUMIF(B$2:B$201,G7,D$2:D$201)/SUMIF(B$2:B$201,G7,E$2:E$201)) ->  | I7: =IF(G7="","",'Data input'!H7/1000000) ->  | L7: 6 | M7: 1.036591952 | N7: =IF(L7="","",IF(M7<Results!D$12,1,0)) -> 1 | P7: 6 | Q7: 1.041681408 | R7: -7.443284744e-08 | S7: =IF(P7="","",(AVERAGE(Q$2:Q$201)-Q7)^2) -> 1.769469531e-05
A8: 7 | B8: =IF(A8="","",'Data input'!B8) -> CBD | C8: =IF($A8="","",VLOOKUP($A8,'Data input'!$A$2:$E$201,COLUMN(C7),FALSE)) -> 0 | D8: =IF($A8="","",VLOOKUP($A8,'Data input'!$A$2:$E$201,COLUMN(D7),FALSE)) -> 19970 | E8: =IF($A8="","",VLOOKUP($A8,'Data input'!$A$2:$E$201,COLUMN(E7),FALSE)) -> 20960 | G8: =IF(ISBLANK('Data input'!G8),"",'Data input'!G8) ->  | H8: =IF(G8="","",(1/1000000)*VLOOKUP(G8,'Data input'!G$2:H$11,2,FALSE)*SUMIF(B$2:B$201,G8,D$2:D$201)/SUMIF(B$2:B$201,G8,E$2:E$201)) ->  | I8: =IF(G8="","",'Data input'!H8/1000000) ->  | L8: 7 | M8: 1.042042909 | N8: =IF(L8="","",IF(M8<Results!D$12,1,0)) -> 0 | P8: 7 | Q8: 1.042621459 | R8: -1.363171205e-07 | S8: 2.648705068e-05
A9: 8 | B9: =IF(A9="","",'Data input'!B9) -> CBD | C9: =IF($A9="","",VLOOKUP($A9,'Data input'!$A$2:$E$201,COLUMN(C8),FALSE)) -> 0 | D9: =IF($A9="","",VLOOKUP($A9,'Data input'!$A$2:$E$201,COLUMN(D8),FALSE)) -> 37000 | E9: =IF($A9="","",VLOOKUP($A9,'Data input'!$A$2:$E$201,COLUMN(E8),FALSE)) -> 36720 | G9: =IF(ISBLANK('Data input'!G9),"",'Data input'!G9) ->  | H9: =IF(G9="","",(1/1000000)*VLOOKUP(G9,'Data input'!G$2:H$11,2,FALSE)*SUMIF(B$2:B$201,G9,D$2:D$201)/SUMIF(B$2:B$201,G9,E$2:E$201)) ->  | I9: =IF(G9="","",'Data input'!H9/1000000) ->  | L9: 8 | M9: 1.041859024 | N9: =IF(L9="","",IF(M9<Results!D$12,1,0)) -> 0 | P9: 8 | Q9: 1.041401723 | R9: -6.055130181e-08 | S9: 1.541992719e-05
A10: 9 | B10: =IF(A10="","",'Data input'!B10) -> CBD | C10: =IF($A10="","",VLOOKUP($A10,'Data input'!$A$2:$E$201,COLUMN(C9),FALSE)) -> 0 | D10: =IF($A10="","",VLOOKUP($A10,'Data input'!$A$2:$E$201,COLUMN(D9),FALSE)) -> 24130 | E10: =IF($A10="","",VLOOKUP($A10,'Data input'!$A$2:$E$201,COLUMN(E9),FALSE)) -> 24000 | G10: =IF(ISBLANK('Data input'!G10),"",'Data input'!G10) ->  | H10: =IF(G10="","",(1/1000000)*VLOOKUP(G10,'Data input'!G$2:H$11,2,FALSE)*SUMIF(B$2:B$201,G10,D$2:D$201)/SUMIF(B$2:B$201,G10,E$2:E$201)) ->  | I10: =IF(G10="","",'Data input'!H10/1000000) ->  | L10: 9 | M10: 1.030159551 | N10: =IF(L10="","",IF(M10<Results!D$12,1,0)) -> 1 | P10: 9 | Q10: 1.04007434 | R10: -1.756461655e-08 | S10: 6.757080852e-06
A11: 10 | B11: =IF(A11="","",'Data input'!B11) -> CBD | C11: =IF($A11="","",VLOOKUP($A11,'Data input'!$A$2:$E$201,COLUMN(C10),FALSE)) -> 0 | D11: =IF($A11="","",VLOOKUP($A11,'Data input'!$A$2:$E$201,COLUMN(D10),FALSE)) -> 28930 | E11: =IF($A11="","",VLOOKUP($A11,'Data input'!$A$2:$E$201,COLUMN(E10),FALSE)) -> 28890 | G11: =IF(ISBLANK('Data input'!G11),"",'Data input'!G11) ->  | H11: =IF(G11="","",(1/1000000)*VLOOKUP(G11,'Data input'!G$2:H$11,2,FALSE)*SUMIF(B$2:B$201,G11,D$2:D$201)/SUMIF(B$2:B$201,G11,E$2:E$201)) ->  | I11: =IF(G11="","",'Data input'!H11/1000000) ->  | L11: 10 | M11: 1.047450163 | N11: =IF(L11="","",IF(M11<Results!D$12,1,0)) -> 0 | P11: 10 | Q11: 1.040969648 | R11: -4.268221236e-08 | S11: 1.221325097e-05
A12: 11 | B12: =IF(A12="","",'Data input'!B12) -> CBD | C12: =IF($A12="","",VLOOKUP($A12,'Data input'!$A$2:$E$201,COLUMN(C11),FALSE)) -> 0 | D12: =IF($A12="","",VLOOKUP($A12,'Data input'!$A$2:$E$201,COLUMN(D11),FALSE)) -> 26060 | E12: =IF($A12="","",VLOOKUP($A12,'Data input'!$A$2:$E$201,COLUMN(E11),FALSE)) -> 22300 | G12: Total | H12: =SUM(H2:H11) -> 1.244957643 | I12: =SUM(I2:I11) -> 1.2 | J12: =H12/I12 -> 1.037464702 | L12: 11 | M12: 1.025544355 | N12: =IF(L12="","",IF(M12<Results!D$12,1,0)) -> 1 | P12: 11 | Q12: 1.030273901 | R12: 3.734037251e-07 | S12: 5.185441799e-05
A13: 12 | B13: =IF(A13="","",'Data input'!B13) -> CBD | C13: =IF($A13="","",VLOOKUP($A13,'Data input'!$A$2:$E$201,COLUMN(C12),FALSE)) -> 0 | D13: =IF($A13="","",VLOOKUP($A13,'Data input'!$A$2:$E$201,COLUMN(D12),FALSE)) -> 19900 | E13: =IF($A13="","",VLOOKUP($A13,'Data input'!$A$2:$E$201,COLUMN(E12),FALSE)) -> 20430 | L13: 12 | M13: 1.0578685 | N13: =IF(L13="","",IF(M13<Results!D$12,1,0)) -> 0 | P13: 12 | Q13: 1.041341717 | R13: -5.781760688e-08 | S13: 1.495225659e-05
A14: 13 | B14: =IF(A14="","",'Data input'!B14) -> CBD | C14: =IF($A14="","",VLOOKUP($A14,'Data input'!$A$2:$E$201,COLUMN(C13),FALSE)) -> 0 | D14: =IF($A14="","",VLOOKUP($A14,'Data input'!$A$2:$E$201,COLUMN(D13),FALSE)) -> 48800 | E14: =IF($A14="","",VLOOKUP($A14,'Data input'!$A$2:$E$201,COLUMN(E13),FALSE)) -> 46500 | L14: 13 | M14: 1.036068713 | N14: =IF(L14="","",IF(M14<Results!D$12,1,0)) -> 1 | P14: 13 | Q14: 1.037058264 | R14: 7.23228689e-11 | S14: 1.735869598e-07
A15: 14 | B15: =IF(A15="","",'Data input'!B15) -> CBD | C15: =IF($A15="","",VLOOKUP($A15,'Data input'!$A$2:$E$201,COLUMN(C14),FALSE)) -> 0 | D15: =IF($A15="","",VLOOKUP($A15,'Data input'!$A$2:$E$201,COLUMN(D14),FALSE)) -> 11100 | E15: =IF($A15="","",VLOOKUP($A15,'Data input'!$A$2:$E$201,COLUMN(E14),FALSE)) -> 10240 | L15: 14 | M15: 1.049003559 | N15: =IF(L15="","",IF(M15<Results!D$12,1,0)) -> 0 | P15: 14 | Q15: 1.036486634 | R15: 9.652138763e-10 | S15: 9.766726763e-07
A16: 15 | B16: =IF(A16="","",'Data input'!B16) -> CBD | C16: =IF($A16="","",VLOOKUP($A16,'Data input'!$A$2:$E$201,COLUMN(C15),FALSE)) -> 0 | D16: =IF($A16="","",VLOOKUP($A16,'Data input'!$A$2:$E$201,COLUMN(D15),FALSE)) -> 6960 | E16: =IF($A16="","",VLOOKUP($A16,'Data input'!$A$2:$E$201,COLUMN(E15),FALSE)) -> 6720 | L16: 15 | M16: 1.053452508 | N16: =IF(L16="","",IF(M16<Results!D$12,1,0)) -> 0 | P16: 15 | Q16: 1.037645331 | R16: -4.950311034e-12 | S16: 2.90461332e-08
A17: 16 | B17: =IF(A17="","",'Data input'!B17) -> CBD | C17: =IF($A17="","",VLOOKUP($A17,'Data input'!$A$2:$E$201,COLUMN(C16),FALSE)) -> 0 | D17: =IF($A17="","",VLOOKUP($A17,'Data input'!$A$2:$E$201,COLUMN(D16),FALSE)) -> 8480 | E17: =IF($A17="","",VLOOKUP($A17,'Data input'!$A$2:$E$201,COLUMN(E16),FALSE)) -> 8140 | L17: 16 | M17: 1.05173632 | N17: =IF(L17="","",IF(M17<Results!D$12,1,0)) -> 0 | P17: 16 | Q17: 1.037559975 | R17: -6.157084498e-13 | S17: 7.237413884e-09
A18: 17 | B18: =IF(A18="","",'Data input'!B18) -> Small town | C18: =IF($A18="","",VLOOKUP($A18,'Data input'!$A$2:$E$201,COLUMN(C17),FALSE)) -> 0 | D18: =IF($A18="","",VLOOKUP($A18,'Data input'!$A$2:$E$201,COLUMN(D17),FALSE)) -> 28750 | E18: =IF($A18="","",VLOOKUP($A18,'Data input'!$A$2:$E$201,COLUMN(E17),FALSE)) -> 28970 | L18: 17 | M18: 1.021245274 | N18: =IF(L18="","",IF(M18<Results!D$12,1,0)) -> 1 | P18: 17 | Q18: 1.037486223 | R18: -1.450920063e-15 | S18: 1.281628995e-10
A19: 18 | B19: =IF(A19="","",'Data input'!B19) -> Small town | C19: =IF($A19="","",VLOOKUP($A19,'Data input'!$A$2:$E$201,COLUMN(C18),FALSE)) -> 0 | D19: =IF($A19="","",VLOOKUP($A19,'Data input'!$A$2:$E$201,COLUMN(D18),FALSE)) -> 19970 | E19: =IF($A19="","",VLOOKUP($A19,'Data input'!$A$2:$E$201,COLUMN(E18),FALSE)) -> 20960 | L19: 18 | M19: 1.048489753 | N19: =IF(L19="","",IF(M19<Results!D$12,1,0)) -> 0 | P19: 18 | Q19: 1.039022771 | R19: -3.708537847e-09 | S19: 2.395898839e-06
A20: 19 | B20: =IF(A20="","",'Data input'!B20) -> Small town | C20: =IF($A20="","",VLOOKUP($A20,'Data input'!$A$2:$E$201,COLUMN(C19),FALSE)) -> 0 | D20: =IF($A20="","",VLOOKUP($A20,'Data input'!$A$2:$E$201,COLUMN(D19),FALSE)) -> 37000 | E20: =IF($A20="","",VLOOKUP($A20,'Data input'!$A$2:$E$201,COLUMN(E19),FALSE)) -> 36720 | L20: 19 | M20: 1.057032059 | N20: =IF(L20="","",IF(M20<Results!D$12,1,0)) -> 0 | P20: 19 | Q20: 1.036234968 | R20: 1.906321449e-09 | S20: 1.537437334e-06
A21: 20 | B21: =IF(A21="","",'Data input'!B21) -> Small town | C21: =IF($A21="","",VLOOKUP($A21,'Data input'!$A$2:$E$201,COLUMN(C20),FALSE)) -> 0 | D21: =IF($A21="","",VLOOKUP($A21,'Data input'!$A$2:$E$201,COLUMN(D20),FALSE)) -> 24130 | E21: =IF($A21="","",VLOOKUP($A21,'Data input'!$A$2:$E$201,COLUMN(E20),FALSE)) -> 24000 | L21: 20 | M21: 1.032899268 | N21: =IF(L21="","",IF(M21<Results!D$12,1,0)) -> 1 | P21: 20 | Q21: 1.036880898 | R21: 2.095892266e-10 | S21: 3.528412106e-07
B22: =IF(A22="","",'Data input'!B22) ->  | C22: =IF($A22="","",VLOOKUP($A22,'Data input'!$A$2:$E$201,COLUMN(C21),FALSE)) ->  | D22: =IF($A22="","",VLOOKUP($A22,'Data input'!$A$2:$E$201,COLUMN(D21),FALSE)) ->  | E22: =IF($A22="","",VLOOKUP($A22,'Data input'!$A$2:$E$201,COLUMN(E21),FALSE)) ->  | L22: 21 | M22: 1.03351195 | N22: =IF(L22="","",IF(M22<Results!D$12,1,0)) -> 1
B23: =IF(A23="","",'Data input'!B23) ->  | C23: =IF($A23="","",VLOOKUP($A23,'Data input'!$A$2:$E$201,COLUMN(C22),FALSE)) ->  | D23: =IF($A23="","",VLOOKUP($A23,'Data input'!$A$2:$E$201,COLUMN(D22),FALSE)) ->  | E23: =IF($A23="","",VLOOKUP($A23,'Data input'!$A$2:$E$201,COLUMN(E22),FALSE)) ->  | L23: 22 | M23: 1.042870066 | N23: =IF(L23="","",IF(M23<Results!D$12,1,0)) -> 0
B24: =IF(A24="","",'Data input'!B24) ->  | C24: =IF($A24="","",VLOOKUP($A24,'Data input'!$A$2:$E$201,COLUMN(C23),FALSE)) ->  | D24: =IF($A24="","",VLOOKUP($A24,'Data input'!$A$2:$E$201,COLUMN(D23),FALSE)) ->  | E24: =IF($A24="","",VLOOKUP($A24,'Data input'!$A$2:$E$201,COLUMN(E23),FALSE)) ->  | L24: 23 | M24: 1.056124437 | N24: =IF(L24="","",IF(M24<Results!D$12,1,0)) -> 0
B25: =IF(A25="","",'Data input'!B25) ->  | C25: =IF($A25="","",VLOOKUP($A25,'Data input'!$A$2:$E$201,COLUMN(C24),FALSE)) ->  | D25: =IF($A25="","",VLOOKUP($A25,'Data input'!$A$2:$E$201,COLUMN(D24),FALSE)) ->  | E25: =IF($A25="","",VLOOKUP($A25,'Data input'!$A$2:$E$201,COLUMN(E24),FALSE)) ->  | L25: 24 | M25: 1.021235012 | N25: =IF(L25="","",IF(M25<Results!D$12,1,0)) -> 1
B26: =IF(A26="","",'Data input'!B26) ->  | C26: =IF($A26="","",VLOOKUP($A26,'Data input'!$A$2:$E$201,COLUMN(C25),FALSE)) ->  | D26: =IF($A26="","",VLOOKUP($A26,'Data input'!$A$2:$E$201,COLUMN(D25),FALSE)) ->  | E26: =IF($A26="","",VLOOKUP($A26,'Data input'!$A$2:$E$201,COLUMN(E25),FALSE)) ->  | L26: 25 | M26: 1.025140129 | N26: =IF(L26="","",IF(M26<Results!D$12,1,0)) -> 1
B27: =IF(A27="","",'Data input'!B27) ->  | C27: =IF($A27="","",VLOOKUP($A27,'Data input'!$A$2:$E$201,COLUMN(C26),FALSE)) ->  | D27: =IF($A27="","",VLOOKUP($A27,'Data input'!$A$2:$E$201,COLUMN(D26),FALSE)) ->  | E27: =IF($A27="","",VLOOKUP($A27,'Data input'!$A$2:$E$201,COLUMN(E26),FALSE)) ->  | L27: 26 | M27: 1.026204362 | N27: =IF(L27="","",IF(M27<Results!D$12,1,0)) -> 1
B28: =IF(A28="","",'Data input'!B28) ->  | C28: =IF($A28="","",VLOOKUP($A28,'Data input'!$A$2:$E$201,COLUMN(C27),FALSE)) ->  | D28: =IF($A28="","",VLOOKUP($A28,'Data input'!$A$2:$E$201,COLUMN(D27),FALSE)) ->  | E28: =IF($A28="","",VLOOKUP($A28,'Data input'!$A$2:$E$201,COLUMN(E27),FALSE)) ->  | L28: 27 | M28: 1.043348341 | N28: =IF(L28="","",IF(M28<Results!D$12,1,0)) -> 0
B29: =IF(A29="","",'Data input'!B29) ->  | C29: =IF($A29="","",VLOOKUP($A29,'Data input'!$A$2:$E$201,COLUMN(C28),FALSE)) ->  | D29: =IF($A29="","",VLOOKUP($A29,'Data input'!$A$2:$E$201,COLUMN(D28),FALSE)) ->  | E29: =IF($A29="","",VLOOKUP($A29,'Data input'!$A$2:$E$201,COLUMN(E28),FALSE)) ->  | L29: 28 | M29: 1.026988365 | N29: =IF(L29="","",IF(M29<Results!D$12,1,0)) -> 1
B30: =IF(A30="","",'Data input'!B30) ->  | C30: =IF($A30="","",VLOOKUP($A30,'Data input'!$A$2:$E$201,COLUMN(C29),FALSE)) ->  | D30: =IF($A30="","",VLOOKUP($A30,'Data input'!$A$2:$E$201,COLUMN(D29),FALSE)) ->  | E30: =IF($A30="","",VLOOKUP($A30,'Data input'!$A$2:$E$201,COLUMN(E29),FALSE)) ->  | L30: 29 | M30: 1.030563344 | N30: =IF(L30="","",IF(M30<Results!D$12,1,0)) -> 1
B31: =IF(A31="","",'Data input'!B31) ->  | C31: =IF($A31="","",VLOOKUP($A31,'Data input'!$A$2:$E$201,COLUMN(C30),FALSE)) ->  | D31: =IF($A31="","",VLOOKUP($A31,'Data input'!$A$2:$E$201,COLUMN(D30),FALSE)) ->  | E31: =IF($A31="","",VLOOKUP($A31,'Data input'!$A$2:$E$201,COLUMN(E30),FALSE)) ->  | L31: 30 | M31: 1.06283874 | N31: =IF(L31="","",IF(M31<Results!D$12,1,0)) -> 0
B32: =IF(A32="","",'Data input'!B32) ->  | C32: =IF($A32="","",VLOOKUP($A32,'Data input'!$A$2:$E$201,COLUMN(C31),FALSE)) ->  | D32: =IF($A32="","",VLOOKUP($A32,'Data input'!$A$2:$E$201,COLUMN(D31),FALSE)) ->  | E32: =IF($A32="","",VLOOKUP($A32,'Data input'!$A$2:$E$201,COLUMN(E31),FALSE)) ->  | L32: 31 | M32: 1.042126349 | N32: =IF(L32="","",IF(M32<Results!D$12,1,0)) -> 0
B33: =IF(A33="","",'Data input'!B33) ->  | C33: =IF($A33="","",VLOOKUP($A33,'Data input'!$A$2:$E$201,COLUMN(C32),FALSE)) ->  | D33: =IF($A33="","",VLOOKUP($A33,'Data input'!$A$2:$E$201,COLUMN(D32),FALSE)) ->  | E33: =IF($A33="","",VLOOKUP($A33,'Data input'!$A$2:$E$201,COLUMN(E32),FALSE)) ->  | L33: 32 | M33: 1.052021631 | N33: =IF(L33="","",IF(M33<Results!D$12,1,0)) -> 0
B34: =IF(A34="","",'Data input'!B34) ->  | C34: =IF($A34="","",VLOOKUP($A34,'Data input'!$A$2:$E$201,COLUMN(C33),FALSE)) ->  | D34: =IF($A34="","",VLOOKUP($A34,'Data input'!$A$2:$E$201,COLUMN(D33),FALSE)) ->  | E34: =IF($A34="","",VLOOKUP($A34,'Data input'!$A$2:$E$201,COLUMN(E33),FALSE)) ->  | L34: 33 | M34: 1.028670662 | N34: =IF(L34="","",IF(M34<Results!D$12,1,0)) -> 1
B35: =IF(A35="","",'Data input'!B35) ->  | C35: =IF($A35="","",VLOOKUP($A35,'Data input'!$A$2:$E$201,COLUMN(C34),FALSE)) ->  | D35: =IF($A35="","",VLOOKUP($A35,'Data input'!$A$2:$E$201,COLUMN(D34),FALSE)) ->  | E35: =IF($A35="","",VLOOKUP($A35,'Data input'!$A$2:$E$201,COLUMN(E34),FALSE)) ->  | L35: 34 | M35: 1.038301641 | N35: =IF(L35="","",IF(M35<Results!D$12,1,0)) -> 0
B36: =IF(A36="","",'Data input'!B36) ->  | C36: =IF($A36="","",VLOOKUP($A36,'Data input'!$A$2:$E$201,COLUMN(C35),FALSE)) ->  | D36: =IF($A36="","",VLOOKUP($A36,'Data input'!$A$2:$E$201,COLUMN(D35),FALSE)) ->  | E36: =IF($A36="","",VLOOKUP($A36,'Data input'!$A$2:$E$201,COLUMN(E35),FALSE)) ->  | L36: 35 | M36: 1.033692789 | N36: =IF(L36="","",IF(M36<Results!D$12,1,0)) -> 1
B37: =IF(A37="","",'Data input'!B37) ->  | C37: =IF($A37="","",VLOOKUP($A37,'Data input'!$A$2:$E$201,COLUMN(C36),FALSE)) ->  | D37: =IF($A37="","",VLOOKUP($A37,'Data input'!$A$2:$E$201,COLUMN(D36),FALSE)) ->  | E37: =IF($A37="","",VLOOKUP($A37,'Data input'!$A$2:$E$201,COLUMN(E36),FALSE)) ->  | L37: 36 | M37: 1.027842877 | N37: =IF(L37="","",IF(M37<Results!D$12,1,0)) -> 1
B38: =IF(A38="","",'Data input'!B38) ->  | C38: =IF($A38="","",VLOOKUP($A38,'Data input'!$A$2:$E$201,COLUMN(C37),FALSE)) ->  | D38: =IF($A38="","",VLOOKUP($A38,'Data input'!$A$2:$E$201,COLUMN(D37),FALSE)) ->  | E38: =IF($A38="","",VLOOKUP($A38,'Data input'!$A$2:$E$201,COLUMN(E37),FALSE)) ->  | L38: 37 | M38: 1.047197336 | N38: =IF(L38="","",IF(M38<Results!D$12,1,0)) -> 0
B39: =IF(A39="","",'Data input'!B39) ->  | C39: =IF($A39="","",VLOOKUP($A39,'Data input'!$A$2:$E$201,COLUMN(C38),FALSE)) ->  | D39: =IF($A39="","",VLOOKUP($A39,'Data input'!$A$2:$E$201,COLUMN(D38),FALSE)) ->  | E39: =IF($A39="","",VLOOKUP($A39,'Data input'!$A$2:$E$201,COLUMN(E38),FALSE)) ->  | L39: 38 | M39: 1.018776799 | N39: =IF(L39="","",IF(M39<Results!D$12,1,0)) -> 1
B40: =IF(A40="","",'Data input'!B40) ->  | C40: =IF($A40="","",VLOOKUP($A40,'Data input'!$A$2:$E$201,COLUMN(C39),FALSE)) ->  | D40: =IF($A40="","",VLOOKUP($A40,'Data input'!$A$2:$E$201,COLUMN(D39),FALSE)) ->  | E40: =IF($A40="","",VLOOKUP($A40,'Data input'!$A$2:$E$201,COLUMN(E39),FALSE)) ->  | L40: 39 | M40: 1.028979096 | N40: =IF(L40="","",IF(M40<Results!D$12,1,0)) -> 1
B41: =IF(A41="","",'Data input'!B41) ->  | C41: =IF($A41="","",VLOOKUP($A41,'Data input'!$A$2:$E$201,COLUMN(C40),FALSE)) ->  | D41: =IF($A41="","",VLOOKUP($A41,'Data input'!$A$2:$E$201,COLUMN(D40),FALSE)) ->  | E41: =IF($A41="","",VLOOKUP($A41,'Data input'!$A$2:$E$201,COLUMN(E40),FALSE)) ->  | L41: 40 | M41: 1.028347672 | N41: =IF(L41="","",IF(M41<Results!D$12,1,0)) -> 1
B42: =IF(A42="","",'Data input'!B42) ->  | C42: =IF($A42="","",VLOOKUP($A42,'Data input'!$A$2:$E$201,COLUMN(C41),FALSE)) ->  | D42: =IF($A42="","",VLOOKUP($A42,'Data input'!$A$2:$E$201,COLUMN(D41),FALSE)) ->  | E42: =IF($A42="","",VLOOKUP($A42,'Data input'!$A$2:$E$201,COLUMN(E41),FALSE)) ->  | L42: 41 | M42: 1.058861937 | N42: =IF(L42="","",IF(M42<Results!D$12,1,0)) -> 0
B43: =IF(A43="","",'Data input'!B43) ->  | C43: =IF($A43="","",VLOOKUP($A43,'Data input'!$A$2:$E$201,COLUMN(C42),FALSE)) ->  | D43: =IF($A43="","",VLOOKUP($A43,'Data input'!$A$2:$E$201,COLUMN(D42),FALSE)) ->  | E43: =IF($A43="","",VLOOKUP($A43,'Data input'!$A$2:$E$201,COLUMN(E42),FALSE)) ->  | L43: 42 | M43: 1.043321867 | N43: =IF(L43="","",IF(M43<Results!D$12,1,0)) -> 0
B44: =IF(A44="","",'Data input'!B44) ->  | C44: =IF($A44="","",VLOOKUP($A44,'Data input'!$A$2:$E$201,COLUMN(C43),FALSE)) ->  | D44: =IF($A44="","",VLOOKUP($A44,'Data input'!$A$2:$E$201,COLUMN(D43),FALSE)) ->  | E44: =IF($A44="","",VLOOKUP($A44,'Data input'!$A$2:$E$201,COLUMN(E43),FALSE)) ->  | L44: 43 | M44: 1.034936458 | N44: =IF(L44="","",IF(M44<Results!D$12,1,0)) -> 1
B45: =IF(A45="","",'Data input'!B45) ->  | C45: =IF($A45="","",VLOOKUP($A45,'Data input'!$A$2:$E$201,COLUMN(C44),FALSE)) ->  | D45: =IF($A45="","",VLOOKUP($A45,'Data input'!$A$2:$E$201,COLUMN(D44),FALSE)) ->  | E45: =IF($A45="","",VLOOKUP($A45,'Data input'!$A$2:$E$201,COLUMN(E44),FALSE)) ->  | L45: 44 | M45: 1.047006934 | N45: =IF(L45="","",IF(M45<Results!D$12,1,0)) -> 0
B46: =IF(A46="","",'Data input'!B46) ->  | C46: =IF($A46="","",VLOOKUP($A46,'Data input'!$A$2:$E$201,COLUMN(C45),FALSE)) ->  | D46: =IF($A46="","",VLOOKUP($A46,'Data input'!$A$2:$E$201,COLUMN(D45),FALSE)) ->  | E46: =IF($A46="","",VLOOKUP($A46,'Data input'!$A$2:$E$201,COLUMN(E45),FALSE)) ->  | L46: 45 | M46: 1.015773227 | N46: =IF(L46="","",IF(M46<Results!D$12,1,0)) -> 1
B47: =IF(A47="","",'Data input'!B47) ->  | C47: =IF($A47="","",VLOOKUP($A47,'Data input'!$A$2:$E$201,COLUMN(C46),FALSE)) ->  | D47: =IF($A47="","",VLOOKUP($A47,'Data input'!$A$2:$E$201,COLUMN(D46),FALSE)) ->  | E47: =IF($A47="","",VLOOKUP($A47,'Data input'!$A$2:$E$201,COLUMN(E46),FALSE)) ->  | L47: 46 | M47: 1.046933236 | N47: =IF(L47="","",IF(M47<Results!D$12,1,0)) -> 0
B48: =IF(A48="","",'Data input'!B48) ->  | C48: =IF($A48="","",VLOOKUP($A48,'Data input'!$A$2:$E$201,COLUMN(C47),FALSE)) ->  | D48: =IF($A48="","",VLOOKUP($A48,'Data input'!$A$2:$E$201,COLUMN(D47),FALSE)) ->  | E48: =IF($A48="","",VLOOKUP($A48,'Data input'!$A$2:$E$201,COLUMN(E47),FALSE)) ->  | L48: 47 | M48: 1.061887514 | N48: =IF(L48="","",IF(M48<Results!D$12,1,0)) -> 0
B49: =IF(A49="","",'Data input'!B49) ->  | C49: =IF($A49="","",VLOOKUP($A49,'Data input'!$A$2:$E$201,COLUMN(C48),FALSE)) ->  | D49: =IF($A49="","",VLOOKUP($A49,'Data input'!$A$2:$E$201,COLUMN(D48),FALSE)) ->  | E49: =IF($A49="","",VLOOKUP($A49,'Data input'!$A$2:$E$201,COLUMN(E48),FALSE)) ->  | L49: 48 | M49: 1.036656653 | N49: =IF(L49="","",IF(M49<Results!D$12,1,0)) -> 1
B50: =IF(A50="","",'Data input'!B50) ->  | C50: =IF($A50="","",VLOOKUP($A50,'Data input'!$A$2:$E$201,COLUMN(C49),FALSE)) ->  | D50: =IF($A50="","",VLOOKUP($A50,'Data input'!$A$2:$E$201,COLUMN(D49),FALSE)) ->  | E50: =IF($A50="","",VLOOKUP($A50,'Data input'!$A$2:$E$201,COLUMN(E49),FALSE)) ->  | L50: 49 | M50: 1.024468586 | N50: =IF(L50="","",IF(M50<Results!D$12,1,0)) -> 1
B51: =IF(A51="","",'Data input'!B51) ->  | C51: =IF($A51="","",VLOOKUP($A51,'Data input'!$A$2:$E$201,COLUMN(C50),FALSE)) ->  | D51: =IF($A51="","",VLOOKUP($A51,'Data input'!$A$2:$E$201,COLUMN(D50),FALSE)) ->  | E51: =IF($A51="","",VLOOKUP($A51,'Data input'!$A$2:$E$201,COLUMN(E50),FALSE)) ->  | L51: 50 | M51: 1.03441529 | N51: =IF(L51="","",IF(M51<Results!D$12,1,0)) -> 1
B52: =IF(A52="","",'Data input'!B52) ->  | C52: =IF($A52="","",VLOOKUP($A52,'Data input'!$A$2:$E$201,COLUMN(C51),FALSE)) ->  | D52: =IF($A52="","",VLOOKUP($A52,'Data input'!$A$2:$E$201,COLUMN(D51),FALSE)) ->  | E52: =IF($A52="","",VLOOKUP($A52,'Data input'!$A$2:$E$201,COLUMN(E51),FALSE)) ->  | L52: 51 | M52: 1.035700071 | N52: =IF(L52="","",IF(M52<Results!D$12,1,0)) -> 1
B53: =IF(A53="","",'Data input'!B53) ->  | C53: =IF($A53="","",VLOOKUP($A53,'Data input'!$A$2:$E$201,COLUMN(C52),FALSE)) ->  | D53: =IF($A53="","",VLOOKUP($A53,'Data input'!$A$2:$E$201,COLUMN(D52),FALSE)) ->  | E53: =IF($A53="","",VLOOKUP($A53,'Data input'!$A$2:$E$201,COLUMN(E52),FALSE)) ->  | L53: 52 | M53: 1.026993639 | N53: =IF(L53="","",IF(M53<Results!D$12,1,0)) -> 1
B54: =IF(A54="","",'Data input'!B54) ->  | C54: =IF($A54="","",VLOOKUP($A54,'Data input'!$A$2:$E$201,COLUMN(C53),FALSE)) ->  | D54: =IF($A54="","",VLOOKUP($A54,'Data input'!$A$2:$E$201,COLUMN(D53),FALSE)) ->  | E54: =IF($A54="","",VLOOKUP($A54,'Data input'!$A$2:$E$201,COLUMN(E53),FALSE)) ->  | L54: 53 | M54: 1.037485756 | N54: =IF(L54="","",IF(M54<Results!D$12,1,0)) -> 0
B55: =IF(A55="","",'Data input'!B55) ->  | C55: =IF($A55="","",VLOOKUP($A55,'Data input'!$A$2:$E$201,COLUMN(C54),FALSE)) ->  | D55: =IF($A55="","",VLOOKUP($A55,'Data input'!$A$2:$E$201,COLUMN(D54),FALSE)) ->  | E55: =IF($A55="","",VLOOKUP($A55,'Data input'!$A$2:$E$201,COLUMN(E54),FALSE)) ->  | L55: 54 | M55: 1.059716972 | N55: =IF(L55="","",IF(M55<Results!D$12,1,0)) -> 0
B56: =IF(A56="","",'Data input'!B56) ->  | C56: =IF($A56="","",VLOOKUP($A56,'Data input'!$A$2:$E$201,COLUMN(C55),FALSE)) ->  | D56: =IF($A56="","",VLOOKUP($A56,'Data input'!$A$2:$E$201,COLUMN(D55),FALSE)) ->  | E56: =IF($A56="","",VLOOKUP($A56,'Data input'!$A$2:$E$201,COLUMN(E55),FALSE)) ->  | L56: 55 | M56: 1.030501777 | N56: =IF(L56="","",IF(M56<Results!D$12,1,0)) -> 1
B57: =IF(A57="","",'Data input'!B57) ->  | C57: =IF($A57="","",VLOOKUP($A57,'Data input'!$A$2:$E$201,COLUMN(C56),FALSE)) ->  | D57: =IF($A57="","",VLOOKUP($A57,'Data input'!$A$2:$E$201,COLUMN(D56),FALSE)) ->  | E57: =IF($A57="","",VLOOKUP($A57,'Data input'!$A$2:$E$201,COLUMN(E56),FALSE)) ->  | L57: 56 | M57: 1.045708275 | N57: =IF(L57="","",IF(M57<Results!D$12,1,0)) -> 0
B58: =IF(A58="","",'Data input'!B58) ->  | C58: =IF($A58="","",VLOOKUP($A58,'Data input'!$A$2:$E$201,COLUMN(C57),FALSE)) ->  | D58: =IF($A58="","",VLOOKUP($A58,'Data input'!$A$2:$E$201,COLUMN(D57),FALSE)) ->  | E58: =IF($A58="","",VLOOKUP($A58,'Data input'!$A$2:$E$201,COLUMN(E57),FALSE)) ->  | L58: 57 | M58: 1.02231856 | N58: =IF(L58="","",IF(M58<Results!D$12,1,0)) -> 1
B59: =IF(A59="","",'Data input'!B59) ->  | C59: =IF($A59="","",VLOOKUP($A59,'Data input'!$A$2:$E$201,COLUMN(C58),FALSE)) ->  | D59: =IF($A59="","",VLOOKUP($A59,'Data input'!$A$2:$E$201,COLUMN(D58),FALSE)) ->  | E59: =IF($A59="","",VLOOKUP($A59,'Data input'!$A$2:$E$201,COLUMN(E58),FALSE)) ->  | L59: 58 | M59: 1.051870653 | N59: =IF(L59="","",IF(M59<Results!D$12,1,0)) -> 0
B60: =IF(A60="","",'Data input'!B60) ->  | C60: =IF($A60="","",VLOOKUP($A60,'Data input'!$A$2:$E$201,COLUMN(C59),FALSE)) ->  | D60: =IF($A60="","",VLOOKUP($A60,'Data input'!$A$2:$E$201,COLUMN(D59),FALSE)) ->  | E60: =IF($A60="","",VLOOKUP($A60,'Data input'!$A$2:$E$201,COLUMN(E59),FALSE)) ->  | L60: 59 | M60: 1.026838443 | N60: =IF(L60="","",IF(M60<Results!D$12,1,0)) -> 1
B61: =IF(A61="","",'Data input'!B61) ->  | C61: =IF($A61="","",VLOOKUP($A61,'Data input'!$A$2:$E$201,COLUMN(C60),FALSE)) ->  | D61: =IF($A61="","",VLOOKUP($A61,'Data input'!$A$2:$E$201,COLUMN(D60),FALSE)) ->  | E61: =IF($A61="","",VLOOKUP($A61,'Data input'!$A$2:$E$201,COLUMN(E60),FALSE)) ->  | L61: 60 | M61: 1.024726153 | N61: =IF(L61="","",IF(M61<Results!D$12,1,0)) -> 1
B62: =IF(A62="","",'Data input'!B62) ->  | C62: =IF($A62="","",VLOOKUP($A62,'Data input'!$A$2:$E$201,COLUMN(C61),FALSE)) ->  | D62: =IF($A62="","",VLOOKUP($A62,'Data input'!$A$2:$E$201,COLUMN(D61),FALSE)) ->  | E62: =IF($A62="","",VLOOKUP($A62,'Data input'!$A$2:$E$201,COLUMN(E61),FALSE)) ->  | L62: 61 | M62: 1.024472601 | N62: =IF(L62="","",IF(M62<Results!D$12,1,0)) -> 1
B63: =IF(A63="","",'Data input'!B63) ->  | C63: =IF($A63="","",VLOOKUP($A63,'Data input'!$A$2:$E$201,COLUMN(C62),FALSE)) ->  | D63: =IF($A63="","",VLOOKUP($A63,'Data input'!$A$2:$E$201,COLUMN(D62),FALSE)) ->  | E63: =IF($A63="","",VLOOKUP($A63,'Data input'!$A$2:$E$201,COLUMN(E62),FALSE)) ->  | L63: 62 | M63: 1.031476227 | N63: =IF(L63="","",IF(M63<Results!D$12,1,0)) -> 1
B64: =IF(A64="","",'Data input'!B64) ->  | C64: =IF($A64="","",VLOOKUP($A64,'Data input'!$A$2:$E$201,COLUMN(C63),FALSE)) ->  | D64: =IF($A64="","",VLOOKUP($A64,'Data input'!$A$2:$E$201,COLUMN(D63),FALSE)) ->  | E64: =IF($A64="","",VLOOKUP($A64,'Data input'!$A$2:$E$201,COLUMN(E63),FALSE)) ->  | L64: 63 | M64: 1.027897426 | N64: =IF(L64="","",IF(M64<Results!D$12,1,0)) -> 1
B65: =IF(A65="","",'Data input'!B65) ->  | C65: =IF($A65="","",VLOOKUP($A65,'Data input'!$A$2:$E$201,COLUMN(C64),FALSE)) ->  | D65: =IF($A65="","",VLOOKUP($A65,'Data input'!$A$2:$E$201,COLUMN(D64),FALSE)) ->  | E65: =IF($A65="","",VLOOKUP($A65,'Data input'!$A$2:$E$201,COLUMN(E64),FALSE)) ->  | L65: 64 | M65: 1.039772351 | N65: =IF(L65="","",IF(M65<Results!D$12,1,0)) -> 0
B66: =IF(A66="","",'Data input'!B66) ->  | C66: =IF($A66="","",VLOOKUP($A66,'Data input'!$A$2:$E$201,COLUMN(C65),FALSE)) ->  | D66: =IF($A66="","",VLOOKUP($A66,'Data input'!$A$2:$E$201,COLUMN(D65),FALSE)) ->  | E66: =IF($A66="","",VLOOKUP($A66,'Data input'!$A$2:$E$201,COLUMN(E65),FALSE)) ->  | L66: 65 | M66: 1.032961652 | N66: =IF(L66="","",IF(M66<Results!D$12,1,0)) -> 1
B67: =IF(A67="","",'Data input'!B67) ->  | C67: =IF($A67="","",VLOOKUP($A67,'Data input'!$A$2:$E$201,COLUMN(C66),FALSE)) ->  | D67: =IF($A67="","",VLOOKUP($A67,'Data input'!$A$2:$E$201,COLUMN(D66),FALSE)) ->  | E67: =IF($A67="","",VLOOKUP($A67,'Data input'!$A$2:$E$201,COLUMN(E66),FALSE)) ->  | L67: =IF(M67="","",ROW(L67)-1) -> 66 | M67: 1.036135386 | N67: =IF(L67="","",IF(M67<Results!D$12,1,0)) -> 1 | P67: =IF(A67="","",ROW(A67)-1) ->  | R67: =IF(P67="","",(AVERAGE(Q$2:Q$201)-Q67)^3) ->  | S67: =IF(P67="","",(AVERAGE(Q$2:Q$201)-Q67)^2) -> 
B68: =IF(A68="","",'Data input'!B68) ->  | C68: =IF($A68="","",VLOOKUP($A68,'Data input'!$A$2:$E$201,COLUMN(C67),FALSE)) ->  | D68: =IF($A68="","",VLOOKUP($A68,'Data input'!$A$2:$E$201,COLUMN(D67),FALSE)) ->  | E68: =IF($A68="","",VLOOKUP($A68,'Data input'!$A$2:$E$201,COLUMN(E67),FALSE)) ->  | L68: 67 | M68: 1.03278133 | N68: =IF(L68="","",IF(M68<Results!D$12,1,0)) -> 1
B69: =IF(A69="","",'Data input'!B69) ->  | C69: =IF($A69="","",VLOOKUP($A69,'Data input'!$A$2:$E$201,COLUMN(C68),FALSE)) ->  | D69: =IF($A69="","",VLOOKUP($A69,'Data input'!$A$2:$E$201,COLUMN(D68),FALSE)) ->  | E69: =IF($A69="","",VLOOKUP($A69,'Data input'!$A$2:$E$201,COLUMN(E68),FALSE)) ->  | L69: 68 | M69: 1.057450385 | N69: =IF(L69="","",IF(M69<Results!D$12,1,0)) -> 0
B70: =IF(A70="","",'Data input'!B70) ->  | C70: =IF($A70="","",VLOOKUP($A70,'Data input'!$A$2:$E$201,COLUMN(C69),FALSE)) ->  | D70: =IF($A70="","",VLOOKUP($A70,'Data input'!$A$2:$E$201,COLUMN(D69),FALSE)) ->  | E70: =IF($A70="","",VLOOKUP($A70,'Data input'!$A$2:$E$201,COLUMN(E69),FALSE)) ->  | L70: 69 | M70: 1.027165101 | N70: =IF(L70="","",IF(M70<Results!D$12,1,0)) -> 1
B71: =IF(A71="","",'Data input'!B71) ->  | C71: =IF($A71="","",VLOOKUP($A71,'Data input'!$A$2:$E$201,COLUMN(C70),FALSE)) ->  | D71: =IF($A71="","",VLOOKUP($A71,'Data input'!$A$2:$E$201,COLUMN(D70),FALSE)) ->  | E71: =IF($A71="","",VLOOKUP($A71,'Data input'!$A$2:$E$201,COLUMN(E70),FALSE)) ->  | L71: 70 | M71: 1.070442137 | N71: =IF(L71="","",IF(M71<Results!D$12,1,0)) -> 0
B72: =IF(A72="","",'Data input'!B72) ->  | C72: =IF($A72="","",VLOOKUP($A72,'Data input'!$A$2:$E$201,COLUMN(C71),FALSE)) ->  | D72: =IF($A72="","",VLOOKUP($A72,'Data input'!$A$2:$E$201,COLUMN(D71),FALSE)) ->  | E72: =IF($A72="","",VLOOKUP($A72,'Data input'!$A$2:$E$201,COLUMN(E71),FALSE)) ->  | L72: 71 | M72: 1.043738343 | N72: =IF(L72="","",IF(M72<Results!D$12,1,0)) -> 0
B73: =IF(A73="","",'Data input'!B73) ->  | C73: =IF($A73="","",VLOOKUP($A73,'Data input'!$A$2:$E$201,COLUMN(C72),FALSE)) ->  | D73: =IF($A73="","",VLOOKUP($A73,'Data input'!$A$2:$E$201,COLUMN(D72),FALSE)) ->  | E73: =IF($A73="","",VLOOKUP($A73,'Data input'!$A$2:$E$201,COLUMN(E72),FALSE)) ->  | L73: 72 | M73: 1.033403125 | N73: =IF(L73="","",IF(M73<Results!D$12,1,0)) -> 1
B74: =IF(A74="","",'Data input'!B74) ->  | C74: =IF($A74="","",VLOOKUP($A74,'Data input'!$A$2:$E$201,COLUMN(C73),FALSE)) ->  | D74: =IF($A74="","",VLOOKUP($A74,'Data input'!$A$2:$E$201,COLUMN(D73),FALSE)) ->  | E74: =IF($A74="","",VLOOKUP($A74,'Data input'!$A$2:$E$201,COLUMN(E73),FALSE)) ->  | L74: 73 | M74: 1.044039359 | N74: =IF(L74="","",IF(M74<Results!D$12,1,0)) -> 0
B75: =IF(A75="","",'Data input'!B75) ->  | C75: =IF($A75="","",VLOOKUP($A75,'Data input'!$A$2:$E$201,COLUMN(C74),FALSE)) ->  | D75: =IF($A75="","",VLOOKUP($A75,'Data input'!$A$2:$E$201,COLUMN(D74),FALSE)) ->  | E75: =IF($A75="","",VLOOKUP($A75,'Data input'!$A$2:$E$201,COLUMN(E74),FALSE)) ->  | L75: 74 | M75: 1.05512818 | N75: =IF(L75="","",IF(M75<Results!D$12,1,0)) -> 0
B76: =IF(A76="","",'Data input'!B76) ->  | C76: =IF($A76="","",VLOOKUP($A76,'Data input'!$A$2:$E$201,COLUMN(C75),FALSE)) ->  | D76: =IF($A76="","",VLOOKUP($A76,'Data input'!$A$2:$E$201,COLUMN(D75),FALSE)) ->  | E76: =IF($A76="","",VLOOKUP($A76,'Data input'!$A$2:$E$201,COLUMN(E75),FALSE)) ->  | L76: 75 | M76: 1.022806603 | N76: =IF(L76="","",IF(M76<Results!D$12,1,0)) -> 1
B77: =IF(A77="","",'Data input'!B77) ->  | C77: =IF($A77="","",VLOOKUP($A77,'Data input'!$A$2:$E$201,COLUMN(C76),FALSE)) ->  | D77: =IF($A77="","",VLOOKUP($A77,'Data input'!$A$2:$E$201,COLUMN(D76),FALSE)) ->  | E77: =IF($A77="","",VLOOKUP($A77,'Data input'!$A$2:$E$201,COLUMN(E76),FALSE)) ->  | L77: 76 | M77: 1.028900289 | N77: =IF(L77="","",IF(M77<Results!D$12,1,0)) -> 1
B78: =IF(A78="","",'Data input'!B78) ->  | C78: =IF($A78="","",VLOOKUP($A78,'Data input'!$A$2:$E$201,COLUMN(C77),FALSE)) ->  | D78: =IF($A78="","",VLOOKUP($A78,'Data input'!$A$2:$E$201,COLUMN(D77),FALSE)) ->  | E78: =IF($A78="","",VLOOKUP($A78,'Data input'!$A$2:$E$201,COLUMN(E77),FALSE)) ->  | L78: 77 | M78: 1.023968955 | N78: =IF(L78="","",IF(M78<Results!D$12,1,0)) -> 1
B79: =IF(A79="","",'Data input'!B79) ->  | C79: =IF($A79="","",VLOOKUP($A79,'Data input'!$A$2:$E$201,COLUMN(C78),FALSE)) ->  | D79: =IF($A79="","",VLOOKUP($A79,'Data input'!$A$2:$E$201,COLUMN(D78),FALSE)) ->  | E79: =IF($A79="","",VLOOKUP($A79,'Data input'!$A$2:$E$201,COLUMN(E78),FALSE)) ->  | L79: 78 | M79: 1.051622659 | N79: =IF(L79="","",IF(M79<Results!D$12,1,0)) -> 0
B80: =IF(A80="","",'Data input'!B80) ->  | C80: =IF($A80="","",VLOOKUP($A80,'Data input'!$A$2:$E$201,COLUMN(C79),FALSE)) ->  | D80: =IF($A80="","",VLOOKUP($A80,'Data input'!$A$2:$E$201,COLUMN(D79),FALSE)) ->  | E80: =IF($A80="","",VLOOKUP($A80,'Data input'!$A$2:$E$201,COLUMN(E79),FALSE)) ->  | L80: 79 | M80: 1.03467947 | N80: =IF(L80="","",IF(M80<Results!D$12,1,0)) -> 1
B81: =IF(A81="","",'Data input'!B81) ->  | C81: =IF($A81="","",VLOOKUP($A81,'Data input'!$A$2:$E$201,COLUMN(C80),FALSE)) ->  | D81: =IF($A81="","",VLOOKUP($A81,'Data input'!$A$2:$E$201,COLUMN(D80),FALSE)) ->  | E81: =IF($A81="","",VLOOKUP($A81,'Data input'!$A$2:$E$201,COLUMN(E80),FALSE)) ->  | L81: 80 | M81: 1.034078769 | N81: =IF(L81="","",IF(M81<Results!D$12,1,0)) -> 1
B82: =IF(A82="","",'Data input'!B82) ->  | C82: =IF($A82="","",VLOOKUP($A82,'Data input'!$A$2:$E$201,COLUMN(C81),FALSE)) ->  | D82: =IF($A82="","",VLOOKUP($A82,'Data input'!$A$2:$E$201,COLUMN(D81),FALSE)) ->  | E82: =IF($A82="","",VLOOKUP($A82,'Data input'!$A$2:$E$201,COLUMN(E81),FALSE)) ->  | L82: 81 | M82: 1.035389929 | N82: =IF(L82="","",IF(M82<Results!D$12,1,0)) -> 1
B83: =IF(A83="","",'Data input'!B83) ->  | C83: =IF($A83="","",VLOOKUP($A83,'Data input'!$A$2:$E$201,COLUMN(C82),FALSE)) ->  | D83: =IF($A83="","",VLOOKUP($A83,'Data input'!$A$2:$E$201,COLUMN(D82),FALSE)) ->  | E83: =IF($A83="","",VLOOKUP($A83,'Data input'!$A$2:$E$201,COLUMN(E82),FALSE)) ->  | L83: 82 | M83: 1.038900167 | N83: =IF(L83="","",IF(M83<Results!D$12,1,0)) -> 0
B84: =IF(A84="","",'Data input'!B84) ->  | C84: =IF($A84="","",VLOOKUP($A84,'Data input'!$A$2:$E$201,COLUMN(C83),FALSE)) ->  | D84: =IF($A84="","",VLOOKUP($A84,'Data input'!$A$2:$E$201,COLUMN(D83),FALSE)) ->  | E84: =IF($A84="","",VLOOKUP($A84,'Data input'!$A$2:$E$201,COLUMN(E83),FALSE)) ->  | L84: 83 | M84: 1.027764865 | N84: =IF(L84="","",IF(M84<Results!D$12,1,0)) -> 1
B85: =IF(A85="","",'Data input'!B85) ->  | C85: =IF($A85="","",VLOOKUP($A85,'Data input'!$A$2:$E$201,COLUMN(C84),FALSE)) ->  | D85: =IF($A85="","",VLOOKUP($A85,'Data input'!$A$2:$E$201,COLUMN(D84),FALSE)) ->  | E85: =IF($A85="","",VLOOKUP($A85,'Data input'!$A$2:$E$201,COLUMN(E84),FALSE)) ->  | L85: 84 | M85: 1.027846969 | N85: =IF(L85="","",IF(M85<Results!D$12,1,0)) -> 1
B86: =IF(A86="","",'Data input'!B86) ->  | C86: =IF($A86="","",VLOOKUP($A86,'Data input'!$A$2:$E$201,COLUMN(C85),FALSE)) ->  | D86: =IF($A86="","",VLOOKUP($A86,'Data input'!$A$2:$E$201,COLUMN(D85),FALSE)) ->  | E86: =IF($A86="","",VLOOKUP($A86,'Data input'!$A$2:$E$201,COLUMN(E85),FALSE)) ->  | L86: 85 | M86: 1.027654049 | N86: =IF(L86="","",IF(M86<Results!D$12,1,0)) -> 1
B87: =IF(A87="","",'Data input'!B87) ->  | C87: =IF($A87="","",VLOOKUP($A87,'Data input'!$A$2:$E$201,COLUMN(C86),FALSE)) ->  | D87: =IF($A87="","",VLOOKUP($A87,'Data input'!$A$2:$E$201,COLUMN(D86),FALSE)) ->  | E87: =IF($A87="","",VLOOKUP($A87,'Data input'!$A$2:$E$201,COLUMN(E86),FALSE)) ->  | L87: 86 | M87: 1.042761023 | N87: =IF(L87="","",IF(M87<Results!D$12,1,0)) -> 0
B88: =IF(A88="","",'Data input'!B88) ->  | C88: =IF($A88="","",VLOOKUP($A88,'Data input'!$A$2:$E$201,COLUMN(C87),FALSE)) ->  | D88: =IF($A88="","",VLOOKUP($A88,'Data input'!$A$2:$E$201,COLUMN(D87),FALSE)) ->  | E88: =IF($A88="","",VLOOKUP($A88,'Data input'!$A$2:$E$201,COLUMN(E87),FALSE)) ->  | L88: 87 | M88: 1.03374846 | N88: =IF(L88="","",IF(M88<Results!D$12,1,0)) -> 1
B89: =IF(A89="","",'Data input'!B89) ->  | C89: =IF($A89="","",VLOOKUP($A89,'Data input'!$A$2:$E$201,COLUMN(C88),FALSE)) ->  | D89: =IF($A89="","",VLOOKUP($A89,'Data input'!$A$2:$E$201,COLUMN(D88),FALSE)) ->  | E89: =IF($A89="","",VLOOKUP($A89,'Data input'!$A$2:$E$201,COLUMN(E88),FALSE)) ->  | L89: 88 | M89: 1.021863264 | N89: =IF(L89="","",IF(M89<Results!D$12,1,0)) -> 1
B90: =IF(A90="","",'Data input'!B90) ->  | C90: =IF($A90="","",VLOOKUP($A90,'Data input'!$A$2:$E$201,COLUMN(C89),FALSE)) ->  | D90: =IF($A90="","",VLOOKUP($A90,'Data input'!$A$2:$E$201,COLUMN(D89),FALSE)) ->  | E90: =IF($A90="","",VLOOKUP($A90,'Data input'!$A$2:$E$201,COLUMN(E89),FALSE)) ->  | L90: 89 | M90: 1.051593183 | N90: =IF(L90="","",IF(M90<Results!D$12,1,0)) -> 0
B91: =IF(A91="","",'Data input'!B91) ->  | C91: =IF($A91="","",VLOOKUP($A91,'Data input'!$A$2:$E$201,COLUMN(C90),FALSE)) ->  | D91: =IF($A91="","",VLOOKUP($A91,'Data input'!$A$2:$E$201,COLUMN(D90),FALSE)) ->  | E91: =IF($A91="","",VLOOKUP($A91,'Data input'!$A$2:$E$201,COLUMN(E90),FALSE)) ->  | L91: 90 | M91: 1.052193113 | N91: =IF(L91="","",IF(M91<Results!D$12,1,0)) -> 0
B92: =IF(A92="","",'Data input'!B92) ->  | C92: =IF($A92="","",VLOOKUP($A92,'Data input'!$A$2:$E$201,COLUMN(C91),FALSE)) ->  | D92: =IF($A92="","",VLOOKUP($A92,'Data input'!$A$2:$E$201,COLUMN(D91),FALSE)) ->  | E92: =IF($A92="","",VLOOKUP($A92,'Data input'!$A$2:$E$201,COLUMN(E91),FALSE)) ->  | L92: 91 | M92: 1.049297908 | N92: =IF(L92="","",IF(M92<Results!D$12,1,0)) -> 0
B93: =IF(A93="","",'Data input'!B93) ->  | C93: =IF($A93="","",VLOOKUP($A93,'Data input'!$A$2:$E$201,COLUMN(C92),FALSE)) ->  | D93: =IF($A93="","",VLOOKUP($A93,'Data input'!$A$2:$E$201,COLUMN(D92),FALSE)) ->  | E93: =IF($A93="","",VLOOKUP($A93,'Data input'!$A$2:$E$201,COLUMN(E92),FALSE)) ->  | L93: 92 | M93: 1.014505647 | N93: =IF(L93="","",IF(M93<Results!D$12,1,0)) -> 1
B94: =IF(A94="","",'Data input'!B94) ->  | C94: =IF($A94="","",VLOOKUP($A94,'Data input'!$A$2:$E$201,COLUMN(C93),FALSE)) ->  | D94: =IF($A94="","",VLOOKUP($A94,'Data input'!$A$2:$E$201,COLUMN(D93),FALSE)) ->  | E94: =IF($A94="","",VLOOKUP($A94,'Data input'!$A$2:$E$201,COLUMN(E93),FALSE)) ->  | L94: 93 | M94: 1.03704326 | N94: =IF(L94="","",IF(M94<Results!D$12,1,0)) -> 1
B95: =IF(A95="","",'Data input'!B95) ->  | C95: =IF($A95="","",VLOOKUP($A95,'Data input'!$A$2:$E$201,COLUMN(C94),FALSE)) ->  | D95: =IF($A95="","",VLOOKUP($A95,'Data input'!$A$2:$E$201,COLUMN(D94),FALSE)) ->  | E95: =IF($A95="","",VLOOKUP($A95,'Data input'!$A$2:$E$201,COLUMN(E94),FALSE)) ->  | L95: 94 | M95: 1.038287815 | N95: =IF(L95="","",IF(M95<Results!D$12,1,0)) -> 0
B96: =IF(A96="","",'Data input'!B96) ->  | C96: =IF($A96="","",VLOOKUP($A96,'Data input'!$A$2:$E$201,COLUMN(C95),FALSE)) ->  | D96: =IF($A96="","",VLOOKUP($A96,'Data input'!$A$2:$E$201,COLUMN(D95),FALSE)) ->  | E96: =IF($A96="","",VLOOKUP($A96,'Data input'!$A$2:$E$201,COLUMN(E95),FALSE)) ->  | L96: 95 | M96: 1.0773865 | N96: =IF(L96="","",IF(M96<Results!D$12,1,0)) -> 0
B97: =IF(A97="","",'Data input'!B97) ->  | C97: =IF($A97="","",VLOOKUP($A97,'Data input'!$A$2:$E$201,COLUMN(C96),FALSE)) ->  | D97: =IF($A97="","",VLOOKUP($A97,'Data input'!$A$2:$E$201,COLUMN(D96),FALSE)) ->  | E97: =IF($A97="","",VLOOKUP($A97,'Data input'!$A$2:$E$201,COLUMN(E96),FALSE)) ->  | L97: 96 | M97: 1.059547228 | N97: =IF(L97="","",IF(M97<Results!D$12,1,0)) -> 0
B98: =IF(A98="","",'Data input'!B98) ->  | C98: =IF($A98="","",VLOOKUP($A98,'Data input'!$A$2:$E$201,COLUMN(C97),FALSE)) ->  | D98: =IF($A98="","",VLOOKUP($A98,'Data input'!$A$2:$E$201,COLUMN(D97),FALSE)) ->  | E98: =IF($A98="","",VLOOKUP($A98,'Data input'!$A$2:$E$201,COLUMN(E97),FALSE)) ->  | L98: 97 | M98: 1.026779546 | N98: =IF(L98="","",IF(M98<Results!D$12,1,0)) -> 1
B99: =IF(A99="","",'Data input'!B99) ->  | C99: =IF($A99="","",VLOOKUP($A99,'Data input'!$A$2:$E$201,COLUMN(C98),FALSE)) ->  | D99: =IF($A99="","",VLOOKUP($A99,'Data input'!$A$2:$E$201,COLUMN(D98),FALSE)) ->  | E99: =IF($A99="","",VLOOKUP($A99,'Data input'!$A$2:$E$201,COLUMN(E98),FALSE)) ->  | L99: 98 | M99: 1.052506876 | N99: =IF(L99="","",IF(M99<Results!D$12,1,0)) -> 0
B100: =IF(A100="","",'Data input'!B100) ->  | C100: =IF($A100="","",VLOOKUP($A100,'Data input'!$A$2:$E$201,COLUMN(C99),FALSE)) ->  | D100: =IF($A100="","",VLOOKUP($A100,'Data input'!$A$2:$E$201,COLUMN(D99),FALSE)) ->  | E100: =IF($A100="","",VLOOKUP($A100,'Data input'!$A$2:$E$201,COLUMN(E99),FALSE)) ->  | L100: 99 | M100: 1.0354912 | N100: =IF(L100="","",IF(M100<Results!D$12,1,0)) -> 1
B101: =IF(A101="","",'Data input'!B101) ->  | C101: =IF($A101="","",VLOOKUP($A101,'Data input'!$A$2:$E$201,COLUMN(C100),FALSE)) ->  | D101: =IF($A101="","",VLOOKUP($A101,'Data input'!$A$2:$E$201,COLUMN(D100),FALSE)) ->  | E101: =IF($A101="","",VLOOKUP($A101,'Data input'!$A$2:$E$201,COLUMN(E100),FALSE)) ->  | L101: 100 | M101: 1.033959421 | N101: =IF(L101="","",IF(M101<Results!D$12,1,0)) -> 1
B102: =IF(A102="","",'Data input'!B102) ->  | C102: =IF($A102="","",VLOOKUP($A102,'Data input'!$A$2:$E$201,COLUMN(C101),FALSE)) ->  | D102: =IF($A102="","",VLOOKUP($A102,'Data input'!$A$2:$E$201,COLUMN(D101),FALSE)) ->  | E102: =IF($A102="","",VLOOKUP($A102,'Data input'!$A$2:$E$201,COLUMN(E101),FALSE)) ->  | L102: 101 | M102: 1.037010874 | N102: =IF(L102="","",IF(M102<Results!D$12,1,0)) -> 1
B103: =IF(A103="","",'Data input'!B103) ->  | C103: =IF($A103="","",VLOOKUP($A103,'Data input'!$A$2:$E$201,COLUMN(C102),FALSE)) ->  | D103: =IF($A103="","",VLOOKUP($A103,'Data input'!$A$2:$E$201,COLUMN(D102),FALSE)) ->  | E103: =IF($A103="","",VLOOKUP($A103,'Data input'!$A$2:$E$201,COLUMN(E102),FALSE)) ->  | L103: 102 | M103: 1.037888111 | N103: =IF(L103="","",IF(M103<Results!D$12,1,0)) -> 0
B104: =IF(A104="","",'Data input'!B104) ->  | C104: =IF($A104="","",VLOOKUP($A104,'Data input'!$A$2:$E$201,COLUMN(C103),FALSE)) ->  | D104: =IF($A104="","",VLOOKUP($A104,'Data input'!$A$2:$E$201,COLUMN(D103),FALSE)) ->  | E104: =IF($A104="","",VLOOKUP($A104,'Data input'!$A$2:$E$201,COLUMN(E103),FALSE)) ->  | L104: 103 | M104: 1.029118948 | N104: =IF(L104="","",IF(M104<Results!D$12,1,0)) -> 1
B105: =IF(A105="","",'Data input'!B105) ->  | C105: =IF($A105="","",VLOOKUP($A105,'Data input'!$A$2:$E$201,COLUMN(C104),FALSE)) ->  | D105: =IF($A105="","",VLOOKUP($A105,'Data input'!$A$2:$E$201,COLUMN(D104),FALSE)) ->  | E105: =IF($A105="","",VLOOKUP($A105,'Data input'!$A$2:$E$201,COLUMN(E104),FALSE)) ->  | L105: 104 | M105: 1.060962623 | N105: =IF(L105="","",IF(M105<Results!D$12,1,0)) -> 0
B106: =IF(A106="","",'Data input'!B106) ->  | C106: =IF($A106="","",VLOOKUP($A106,'Data input'!$A$2:$E$201,COLUMN(C105),FALSE)) ->  | D106: =IF($A106="","",VLOOKUP($A106,'Data input'!$A$2:$E$201,COLUMN(D105),FALSE)) ->  | E106: =IF($A106="","",VLOOKUP($A106,'Data input'!$A$2:$E$201,COLUMN(E105),FALSE)) ->  | L106: 105 | M106: 1.049702386 | N106: =IF(L106="","",IF(M106<Results!D$12,1,0)) -> 0
B107: =IF(A107="","",'Data input'!B107) ->  | C107: =IF($A107="","",VLOOKUP($A107,'Data input'!$A$2:$E$201,COLUMN(C106),FALSE)) ->  | D107: =IF($A107="","",VLOOKUP($A107,'Data input'!$A$2:$E$201,COLUMN(D106),FALSE)) ->  | E107: =IF($A107="","",VLOOKUP($A107,'Data input'!$A$2:$E$201,COLUMN(E106),FALSE)) ->  | L107: 106 | M107: 1.022654067 | N107: =IF(L107="","",IF(M107<Results!D$12,1,0)) -> 1
B108: =IF(A108="","",'Data input'!B108) ->  | C108: =IF($A108="","",VLOOKUP($A108,'Data input'!$A$2:$E$201,COLUMN(C107),FALSE)) ->  | D108: =IF($A108="","",VLOOKUP($A108,'Data input'!$A$2:$E$201,COLUMN(D107),FALSE)) ->  | E108: =IF($A108="","",VLOOKUP($A108,'Data input'!$A$2:$E$201,COLUMN(E107),FALSE)) ->  | L108: 107 | M108: 1.044628636 | N108: =IF(L108="","",IF(M108<Results!D$12,1,0)) -> 0
B109: =IF(A109="","",'Data input'!B109) ->  | C109: =IF($A109="","",VLOOKUP($A109,'Data input'!$A$2:$E$201,COLUMN(C108),FALSE)) ->  | D109: =IF($A109="","",VLOOKUP($A109,'Data input'!$A$2:$E$201,COLUMN(D108),FALSE)) ->  | E109: =IF($A109="","",VLOOKUP($A109,'Data input'!$A$2:$E$201,COLUMN(E108),FALSE)) ->  | L109: 108 | M109: 1.039030059 | N109: =IF(L109="","",IF(M109<Results!D$12,1,0)) -> 0
B110: =IF(A110="","",'Data input'!B110) ->  | C110: =IF($A110="","",VLOOKUP($A110,'Data input'!$A$2:$E$201,COLUMN(C109),FALSE)) ->  | D110: =IF($A110="","",VLOOKUP($A110,'Data input'!$A$2:$E$201,COLUMN(D109),FALSE)) ->  | E110: =IF($A110="","",VLOOKUP($A110,'Data input'!$A$2:$E$201,COLUMN(E109),FALSE)) ->  | L110: 109 | M110: 1.012843029 | N110: =IF(L110="","",IF(M110<Results!D$12,1,0)) -> 1
B111: =IF(A111="","",'Data input'!B111) ->  | C111: =IF($A111="","",VLOOKUP($A111,'Data input'!$A$2:$E$201,COLUMN(C110),FALSE)) ->  | D111: =IF($A111="","",VLOOKUP($A111,'Data input'!$A$2:$E$201,COLUMN(D110),FALSE)) ->  | E111: =IF($A111="","",VLOOKUP($A111,'Data input'!$A$2:$E$201,COLUMN(E110),FALSE)) ->  | L111: 110 | M111: 1.042726934 | N111: =IF(L111="","",IF(M111<Results!D$12,1,0)) -> 0
B112: =IF(A112="","",'Data input'!B112) ->  | C112: =IF($A112="","",VLOOKUP($A112,'Data input'!$A$2:$E$201,COLUMN(C111),FALSE)) ->  | D112: =IF($A112="","",VLOOKUP($A112,'Data input'!$A$2:$E$201,COLUMN(D111),FALSE)) ->  | E112: =IF($A112="","",VLOOKUP($A112,'Data input'!$A$2:$E$201,COLUMN(E111),FALSE)) ->  | L112: 111 | M112: 1.049177875 | N112: =IF(L112="","",IF(M112<Results!D$12,1,0)) -> 0
B113: =IF(A113="","",'Data input'!B113) ->  | C113: =IF($A113="","",VLOOKUP($A113,'Data input'!$A$2:$E$201,COLUMN(C112),FALSE)) ->  | D113: =IF($A113="","",VLOOKUP($A113,'Data input'!$A$2:$E$201,COLUMN(D112),FALSE)) ->  | E113: =IF($A113="","",VLOOKUP($A113,'Data input'!$A$2:$E$201,COLUMN(E112),FALSE)) ->  | L113: 112 | M113: 1.019192682 | N113: =IF(L113="","",IF(M113<Results!D$12,1,0)) -> 1
B114: =IF(A114="","",'Data input'!B114) ->  | C114: =IF($A114="","",VLOOKUP($A114,'Data input'!$A$2:$E$201,COLUMN(C113),FALSE)) ->  | D114: =IF($A114="","",VLOOKUP($A114,'Data input'!$A$2:$E$201,COLUMN(D113),FALSE)) ->  | E114: =IF($A114="","",VLOOKUP($A114,'Data input'!$A$2:$E$201,COLUMN(E113),FALSE)) ->  | L114: 113 | M114: 1.025461444 | N114: =IF(L114="","",IF(M114<Results!D$12,1,0)) -> 1
B115: =IF(A115="","",'Data input'!B115) ->  | C115: =IF($A115="","",VLOOKUP($A115,'Data input'!$A$2:$E$201,COLUMN(C114),FALSE)) ->  | D115: =IF($A115="","",VLOOKUP($A115,'Data input'!$A$2:$E$201,COLUMN(D114),FALSE)) ->  | E115: =IF($A115="","",VLOOKUP($A115,'Data input'!$A$2:$E$201,COLUMN(E114),FALSE)) ->  | L115: 114 | M115: 1.04460354 | N115: =IF(L115="","",IF(M115<Results!D$12,1,0)) -> 0
B116: =IF(A116="","",'Data input'!B116) ->  | C116: =IF($A116="","",VLOOKUP($A116,'Data input'!$A$2:$E$201,COLUMN(C115),FALSE)) ->  | D116: =IF($A116="","",VLOOKUP($A116,'Data input'!$A$2:$E$201,COLUMN(D115),FALSE)) ->  | E116: =IF($A116="","",VLOOKUP($A116,'Data input'!$A$2:$E$201,COLUMN(E115),FALSE)) ->  | L116: 115 | M116: 1.028003517 | N116: =IF(L116="","",IF(M116<Results!D$12,1,0)) -> 1
B117: =IF(A117="","",'Data input'!B117) ->  | C117: =IF($A117="","",VLOOKUP($A117,'Data input'!$A$2:$E$201,COLUMN(C116),FALSE)) ->  | D117: =IF($A117="","",VLOOKUP($A117,'Data input'!$A$2:$E$201,COLUMN(D116),FALSE)) ->  | E117: =IF($A117="","",VLOOKUP($A117,'Data input'!$A$2:$E$201,COLUMN(E116),FALSE)) ->  | L117: 116 | M117: 1.046394489 | N117: =IF(L117="","",IF(M117<Results!D$12,1,0)) -> 0
B118: =IF(A118="","",'Data input'!B118) ->  | C118: =IF($A118="","",VLOOKUP($A118,'Data input'!$A$2:$E$201,COLUMN(C117),FALSE)) ->  | D118: =IF($A118="","",VLOOKUP($A118,'Data input'!$A$2:$E$201,COLUMN(D117),FALSE)) ->  | E118: =IF($A118="","",VLOOKUP($A118,'Data input'!$A$2:$E$201,COLUMN(E117),FALSE)) ->  | L118: 117 | M118: 1.043673777 | N118: =IF(L118="","",IF(M118<Results!D$12,1,0)) -> 0
B119: =IF(A119="","",'Data input'!B119) ->  | C119: =IF($A119="","",VLOOKUP($A119,'Data input'!$A$2:$E$201,COLUMN(C118),FALSE)) ->  | D119: =IF($A119="","",VLOOKUP($A119,'Data input'!$A$2:$E$201,COLUMN(D118),FALSE)) ->  | E119: =IF($A119="","",VLOOKUP($A119,'Data input'!$A$2:$E$201,COLUMN(E118),FALSE)) ->  | L119: 118 | M119: 1.036273461 | N119: =IF(L119="","",IF(M119<Results!D$12,1,0)) -> 1
B120: =IF(A120="","",'Data input'!B120) ->  | C120: =IF($A120="","",VLOOKUP($A120,'Data input'!$A$2:$E$201,COLUMN(C119),FALSE)) ->  | D120: =IF($A120="","",VLOOKUP($A120,'Data input'!$A$2:$E$201,COLUMN(D119),FALSE)) ->  | E120: =IF($A120="","",VLOOKUP($A120,'Data input'!$A$2:$E$201,COLUMN(E119),FALSE)) ->  | L120: 119 | M120: 1.032693969 | N120: =IF(L120="","",IF(M120<Results!D$12,1,0)) -> 1
B121: =IF(A121="","",'Data input'!B121) ->  | C121: =IF($A121="","",VLOOKUP($A121,'Data input'!$A$2:$E$201,COLUMN(C120),FALSE)) ->  | D121: =IF($A121="","",VLOOKUP($A121,'Data input'!$A$2:$E$201,COLUMN(D120),FALSE)) ->  | E121: =IF($A121="","",VLOOKUP($A121,'Data input'!$A$2:$E$201,COLUMN(E120),FALSE)) ->  | L121: 120 | M121: 1.008903885 | N121: =IF(L121="","",IF(M121<Results!D$12,1,0)) -> 1
B122: =IF(A122="","",'Data input'!B122) ->  | C122: =IF($A122="","",VLOOKUP($A122,'Data input'!$A$2:$E$201,COLUMN(C121),FALSE)) ->  | D122: =IF($A122="","",VLOOKUP($A122,'Data input'!$A$2:$E$201,COLUMN(D121),FALSE)) ->  | E122: =IF($A122="","",VLOOKUP($A122,'Data input'!$A$2:$E$201,COLUMN(E121),FALSE)) ->  | L122: 121 | M122: 1.045725878 | N122: =IF(L122="","",IF(M122<Results!D$12,1,0)) -> 0
B123: =IF(A123="","",'Data input'!B123) ->  | C123: =IF($A123="","",VLOOKUP($A123,'Data input'!$A$2:$E$201,COLUMN(C122),FALSE)) ->  | D123: =IF($A123="","",VLOOKUP($A123,'Data input'!$A$2:$E$201,COLUMN(D122),FALSE)) ->  | E123: =IF($A123="","",VLOOKUP($A123,'Data input'!$A$2:$E$201,COLUMN(E122),FALSE)) ->  | L123: 122 | M123: 1.021185868 | N123: =IF(L123="","",IF(M123<Results!D$12,1,0)) -> 1
B124: =IF(A124="","",'Data input'!B124) ->  | C124: =IF($A124="","",VLOOKUP($A124,'Data input'!$A$2:$E$201,COLUMN(C123),FALSE)) ->  | D124: =IF($A124="","",VLOOKUP($A124,'Data input'!$A$2:$E$201,COLUMN(D123),FALSE)) ->  | E124: =IF($A124="","",VLOOKUP($A124,'Data input'!$A$2:$E$201,COLUMN(E123),FALSE)) ->  | L124: 123 | M124: 1.030424698 | N124: =IF(L124="","",IF(M124<Results!D$12,1,0)) -> 1
B125: =IF(A125="","",'Data input'!B125) ->  | C125: =IF($A125="","",VLOOKUP($A125,'Data input'!$A$2:$E$201,COLUMN(C124),FALSE)) ->  | D125: =IF($A125="","",VLOOKUP($A125,'Data input'!$A$2:$E$201,COLUMN(D124),FALSE)) ->  | E125: =IF($A125="","",VLOOKUP($A125,'Data input'!$A$2:$E$201,COLUMN(E124),FALSE)) ->  | L125: 124 | M125: 1.029993035 | N125: =IF(L125="","",IF(M125<Results!D$12,1,0)) -> 1
B126: =IF(A126="","",'Data input'!B126) ->  | C126: =IF($A126="","",VLOOKUP($A126,'Data input'!$A$2:$E$201,COLUMN(C125),FALSE)) ->  | D126: =IF($A126="","",VLOOKUP($A126,'Data input'!$A$2:$E$201,COLUMN(D125),FALSE)) ->  | E126: =IF($A126="","",VLOOKUP($A126,'Data input'!$A$2:$E$201,COLUMN(E125),FALSE)) ->  | L126: 125 | M126: 1.043481996 | N126: =IF(L126="","",IF(M126<Results!D$12,1,0)) -> 0
B127: =IF(A127="","",'Data input'!B127) ->  | C127: =IF($A127="","",VLOOKUP($A127,'Data input'!$A$2:$E$201,COLUMN(C126),FALSE)) ->  | D127: =IF($A127="","",VLOOKUP($A127,'Data input'!$A$2:$E$201,COLUMN(D126),FALSE)) ->  | E127: =IF($A127="","",VLOOKUP($A127,'Data input'!$A$2:$E$201,COLUMN(E126),FALSE)) ->  | L127: 126 | M127: 1.02827514 | N127: =IF(L127="","",IF(M127<Results!D$12,1,0)) -> 1
B128: =IF(A128="","",'Data input'!B128) ->  | C128: =IF($A128="","",VLOOKUP($A128,'Data input'!$A$2:$E$201,COLUMN(C127),FALSE)) ->  | D128: =IF($A128="","",VLOOKUP($A128,'Data input'!$A$2:$E$201,COLUMN(D127),FALSE)) ->  | E128: =IF($A128="","",VLOOKUP($A128,'Data input'!$A$2:$E$201,COLUMN(E127),FALSE)) ->  | L128: 127 | M128: 1.033803042 | N128: =IF(L128="","",IF(M128<Results!D$12,1,0)) -> 1
B129: =IF(A129="","",'Data input'!B129) ->  | C129: =IF($A129="","",VLOOKUP($A129,'Data input'!$A$2:$E$201,COLUMN(C128),FALSE)) ->  | D129: =IF($A129="","",VLOOKUP($A129,'Data input'!$A$2:$E$201,COLUMN(D128),FALSE)) ->  | E129: =IF($A129="","",VLOOKUP($A129,'Data input'!$A$2:$E$201,COLUMN(E128),FALSE)) ->  | L129: 128 | M129: 1.03526349 | N129: =IF(L129="","",IF(M129<Results!D$12,1,0)) -> 1
B130: =IF(A130="","",'Data input'!B130) ->  | C130: =IF($A130="","",VLOOKUP($A130,'Data input'!$A$2:$E$201,COLUMN(C129),FALSE)) ->  | D130: =IF($A130="","",VLOOKUP($A130,'Data input'!$A$2:$E$201,COLUMN(D129),FALSE)) ->  | E130: =IF($A130="","",VLOOKUP($A130,'Data input'!$A$2:$E$201,COLUMN(E129),FALSE)) ->  | L130: 129 | M130: 1.040540627 | N130: =IF(L130="","",IF(M130<Results!D$12,1,0)) -> 0
B131: =IF(A131="","",'Data input'!B131) ->  | C131: =IF($A131="","",VLOOKUP($A131,'Data input'!$A$2:$E$201,COLUMN(C130),FALSE)) ->  | D131: =IF($A131="","",VLOOKUP($A131,'Data input'!$A$2:$E$201,COLUMN(D130),FALSE)) ->  | E131: =IF($A131="","",VLOOKUP($A131,'Data input'!$A$2:$E$201,COLUMN(E130),FALSE)) ->  | L131: =IF(M131="","",ROW(L131)-1) -> 130 | M131: 1.050288631 | N131: =IF(L131="","",IF(M131<Results!D$12,1,0)) -> 0 | P131: =IF(A131="","",ROW(A131)-1) ->  | R131: =IF(P131="","",(AVERAGE(Q$2:Q$201)-Q131)^3) ->  | S131: =IF(P131="","",(AVERAGE(Q$2:Q$201)-Q131)^2) -> 
B132: =IF(A132="","",'Data input'!B132) ->  | C132: =IF($A132="","",VLOOKUP($A132,'Data input'!$A$2:$E$201,COLUMN(C131),FALSE)) ->  | D132: =IF($A132="","",VLOOKUP($A132,'Data input'!$A$2:$E$201,COLUMN(D131),FALSE)) ->  | E132: =IF($A132="","",VLOOKUP($A132,'Data input'!$A$2:$E$201,COLUMN(E131),FALSE)) ->  | L132: 131 | M132: 1.023813856 | N132: =IF(L132="","",IF(M132<Results!D$12,1,0)) -> 1
B133: =IF(A133="","",'Data input'!B133) ->  | C133: =IF($A133="","",VLOOKUP($A133,'Data input'!$A$2:$E$201,COLUMN(C132),FALSE)) ->  | D133: =IF($A133="","",VLOOKUP($A133,'Data input'!$A$2:$E$201,COLUMN(D132),FALSE)) ->  | E133: =IF($A133="","",VLOOKUP($A133,'Data input'!$A$2:$E$201,COLUMN(E132),FALSE)) ->  | L133: 132 | M133: 1.058231838 | N133: =IF(L133="","",IF(M133<Results!D$12,1,0)) -> 0
B134: =IF(A134="","",'Data input'!B134) ->  | C134: =IF($A134="","",VLOOKUP($A134,'Data input'!$A$2:$E$201,COLUMN(C133),FALSE)) ->  | D134: =IF($A134="","",VLOOKUP($A134,'Data input'!$A$2:$E$201,COLUMN(D133),FALSE)) ->  | E134: =IF($A134="","",VLOOKUP($A134,'Data input'!$A$2:$E$201,COLUMN(E133),FALSE)) ->  | L134: 133 | M134: 1.0300966 | N134: =IF(L134="","",IF(M134<Results!D$12,1,0)) -> 1
B135: =IF(A135="","",'Data input'!B135) ->  | C135: =IF($A135="","",VLOOKUP($A135,'Data input'!$A$2:$E$201,COLUMN(C134),FALSE)) ->  | D135: =IF($A135="","",VLOOKUP($A135,'Data input'!$A$2:$E$201,COLUMN(D134),FALSE)) ->  | E135: =IF($A135="","",VLOOKUP($A135,'Data input'!$A$2:$E$201,COLUMN(E134),FALSE)) ->  | L135: 134 | M135: 1.031665095 | N135: =IF(L135="","",IF(M135<Results!D$12,1,0)) -> 1
B136: =IF(A136="","",'Data input'!B136) ->  | C136: =IF($A136="","",VLOOKUP($A136,'Data input'!$A$2:$E$201,COLUMN(C135),FALSE)) ->  | D136: =IF($A136="","",VLOOKUP($A136,'Data input'!$A$2:$E$201,COLUMN(D135),FALSE)) ->  | E136: =IF($A136="","",VLOOKUP($A136,'Data input'!$A$2:$E$201,COLUMN(E135),FALSE)) ->  | L136: 135 | M136: 1.064314438 | N136: =IF(L136="","",IF(M136<Results!D$12,1,0)) -> 0
B137: =IF(A137="","",'Data input'!B137) ->  | C137: =IF($A137="","",VLOOKUP($A137,'Data input'!$A$2:$E$201,COLUMN(C136),FALSE)) ->  | D137: =IF($A137="","",VLOOKUP($A137,'Data input'!$A$2:$E$201,COLUMN(D136),FALSE)) ->  | E137: =IF($A137="","",VLOOKUP($A137,'Data input'!$A$2:$E$201,COLUMN(E136),FALSE)) ->  | L137: 136 | M137: 1.058148441 | N137: =IF(L137="","",IF(M137<Results!D$12,1,0)) -> 0
B138: =IF(A138="","",'Data input'!B138) ->  | C138: =IF($A138="","",VLOOKUP($A138,'Data input'!$A$2:$E$201,COLUMN(C137),FALSE)) ->  | D138: =IF($A138="","",VLOOKUP($A138,'Data input'!$A$2:$E$201,COLUMN(D137),FALSE)) ->  | E138: =IF($A138="","",VLOOKUP($A138,'Data input'!$A$2:$E$201,COLUMN(E137),FALSE)) ->  | L138: 137 | M138: 1.017109981 | N138: =IF(L138="","",IF(M138<Results!D$12,1,0)) -> 1
B139: =IF(A139="","",'Data input'!B139) ->  | C139: =IF($A139="","",VLOOKUP($A139,'Data input'!$A$2:$E$201,COLUMN(C138),FALSE)) ->  | D139: =IF($A139="","",VLOOKUP($A139,'Data input'!$A$2:$E$201,COLUMN(D138),FALSE)) ->  | E139: =IF($A139="","",VLOOKUP($A139,'Data input'!$A$2:$E$201,COLUMN(E138),FALSE)) ->  | L139: 138 | M139: 1.034515554 | N139: =IF(L139="","",IF(M139<Results!D$12,1,0)) -> 1
B140: =IF(A140="","",'Data input'!B140) ->  | C140: =IF($A140="","",VLOOKUP($A140,'Data input'!$A$2:$E$201,COLUMN(C139),FALSE)) ->  | D140: =IF($A140="","",VLOOKUP($A140,'Data input'!$A$2:$E$201,COLUMN(D139),FALSE)) ->  | E140: =IF($A140="","",VLOOKUP($A140,'Data input'!$A$2:$E$201,COLUMN(E139),FALSE)) ->  | L140: 139 | M140: 1.03658803 | N140: =IF(L140="","",IF(M140<Results!D$12,1,0)) -> 1
B141: =IF(A141="","",'Data input'!B141) ->  | C141: =IF($A141="","",VLOOKUP($A141,'Data input'!$A$2:$E$201,COLUMN(C140),FALSE)) ->  | D141: =IF($A141="","",VLOOKUP($A141,'Data input'!$A$2:$E$201,COLUMN(D140),FALSE)) ->  | E141: =IF($A141="","",VLOOKUP($A141,'Data input'!$A$2:$E$201,COLUMN(E140),FALSE)) ->  | L141: 140 | M141: 1.032720441 | N141: =IF(L141="","",IF(M141<Results!D$12,1,0)) -> 1
B142: =IF(A142="","",'Data input'!B142) ->  | C142: =IF($A142="","",VLOOKUP($A142,'Data input'!$A$2:$E$201,COLUMN(C141),FALSE)) ->  | D142: =IF($A142="","",VLOOKUP($A142,'Data input'!$A$2:$E$201,COLUMN(D141),FALSE)) ->  | E142: =IF($A142="","",VLOOKUP($A142,'Data input'!$A$2:$E$201,COLUMN(E141),FALSE)) ->  | L142: 141 | M142: 1.039326653 | N142: =IF(L142="","",IF(M142<Results!D$12,1,0)) -> 0
B143: =IF(A143="","",'Data input'!B143) ->  | C143: =IF($A143="","",VLOOKUP($A143,'Data input'!$A$2:$E$201,COLUMN(C142),FALSE)) ->  | D143: =IF($A143="","",VLOOKUP($A143,'Data input'!$A$2:$E$201,COLUMN(D142),FALSE)) ->  | E143: =IF($A143="","",VLOOKUP($A143,'Data input'!$A$2:$E$201,COLUMN(E142),FALSE)) ->  | L143: 142 | M143: 1.027342784 | N143: =IF(L143="","",IF(M143<Results!D$12,1,0)) -> 1
B144: =IF(A144="","",'Data input'!B144) ->  | C144: =IF($A144="","",VLOOKUP($A144,'Data input'!$A$2:$E$201,COLUMN(C143),FALSE)) ->  | D144: =IF($A144="","",VLOOKUP($A144,'Data input'!$A$2:$E$201,COLUMN(D143),FALSE)) ->  | E144: =IF($A144="","",VLOOKUP($A144,'Data input'!$A$2:$E$201,COLUMN(E143),FALSE)) ->  | L144: 143 | M144: 1.012118726 | N144: =IF(L144="","",IF(M144<Results!D$12,1,0)) -> 1
B145: =IF(A145="","",'Data input'!B145) ->  | C145: =IF($A145="","",VLOOKUP($A145,'Data input'!$A$2:$E$201,COLUMN(C144),FALSE)) ->  | D145: =IF($A145="","",VLOOKUP($A145,'Data input'!$A$2:$E$201,COLUMN(D144),FALSE)) ->  | E145: =IF($A145="","",VLOOKUP($A145,'Data input'!$A$2:$E$201,COLUMN(E144),FALSE)) ->  | L145: 144 | M145: 1.022121047 | N145: =IF(L145="","",IF(M145<Results!D$12,1,0)) -> 1
B146: =IF(A146="","",'Data input'!B146) ->  | C146: =IF($A146="","",VLOOKUP($A146,'Data input'!$A$2:$E$201,COLUMN(C145),FALSE)) ->  | D146: =IF($A146="","",VLOOKUP($A146,'Data input'!$A$2:$E$201,COLUMN(D145),FALSE)) ->  | E146: =IF($A146="","",VLOOKUP($A146,'Data input'!$A$2:$E$201,COLUMN(E145),FALSE)) ->  | L146: 145 | M146: 1.041704898 | N146: =IF(L146="","",IF(M146<Results!D$12,1,0)) -> 0
B147: =IF(A147="","",'Data input'!B147) ->  | C147: =IF($A147="","",VLOOKUP($A147,'Data input'!$A$2:$E$201,COLUMN(C146),FALSE)) ->  | D147: =IF($A147="","",VLOOKUP($A147,'Data input'!$A$2:$E$201,COLUMN(D146),FALSE)) ->  | E147: =IF($A147="","",VLOOKUP($A147,'Data input'!$A$2:$E$201,COLUMN(E146),FALSE)) ->  | L147: 146 | M147: 1.03730082 | N147: =IF(L147="","",IF(M147<Results!D$12,1,0)) -> 1
B148: =IF(A148="","",'Data input'!B148) ->  | C148: =IF($A148="","",VLOOKUP($A148,'Data input'!$A$2:$E$201,COLUMN(C147),FALSE)) ->  | D148: =IF($A148="","",VLOOKUP($A148,'Data input'!$A$2:$E$201,COLUMN(D147),FALSE)) ->  | E148: =IF($A148="","",VLOOKUP($A148,'Data input'!$A$2:$E$201,COLUMN(E147),FALSE)) ->  | L148: 147 | M148: 1.02992968 | N148: =IF(L148="","",IF(M148<Results!D$12,1,0)) -> 1
B149: =IF(A149="","",'Data input'!B149) ->  | C149: =IF($A149="","",VLOOKUP($A149,'Data input'!$A$2:$E$201,COLUMN(C148),FALSE)) ->  | D149: =IF($A149="","",VLOOKUP($A149,'Data input'!$A$2:$E$201,COLUMN(D148),FALSE)) ->  | E149: =IF($A149="","",VLOOKUP($A149,'Data input'!$A$2:$E$201,COLUMN(E148),FALSE)) ->  | L149: 148 | M149: 1.038158336 | N149: =IF(L149="","",IF(M149<Results!D$12,1,0)) -> 0
B150: =IF(A150="","",'Data input'!B150) ->  | C150: =IF($A150="","",VLOOKUP($A150,'Data input'!$A$2:$E$201,COLUMN(C149),FALSE)) ->  | D150: =IF($A150="","",VLOOKUP($A150,'Data input'!$A$2:$E$201,COLUMN(D149),FALSE)) ->  | E150: =IF($A150="","",VLOOKUP($A150,'Data input'!$A$2:$E$201,COLUMN(E149),FALSE)) ->  | L150: 149 | M150: 1.009630963 | N150: =IF(L150="","",IF(M150<Results!D$12,1,0)) -> 1
B151: =IF(A151="","",'Data input'!B151) ->  | C151: =IF($A151="","",VLOOKUP($A151,'Data input'!$A$2:$E$201,COLUMN(C150),FALSE)) ->  | D151: =IF($A151="","",VLOOKUP($A151,'Data input'!$A$2:$E$201,COLUMN(D150),FALSE)) ->  | E151: =IF($A151="","",VLOOKUP($A151,'Data input'!$A$2:$E$201,COLUMN(E150),FALSE)) ->  | L151: 150 | M151: 1.031495013 | N151: =IF(L151="","",IF(M151<Results!D$12,1,0)) -> 1
B152: =IF(A152="","",'Data input'!B152) ->  | C152: =IF($A152="","",VLOOKUP($A152,'Data input'!$A$2:$E$201,COLUMN(C151),FALSE)) ->  | D152: =IF($A152="","",VLOOKUP($A152,'Data input'!$A$2:$E$201,COLUMN(D151),FALSE)) ->  | E152: =IF($A152="","",VLOOKUP($A152,'Data input'!$A$2:$E$201,COLUMN(E151),FALSE)) ->  | L152: 151 | M152: 1.025575356 | N152: =IF(L152="","",IF(M152<Results!D$12,1,0)) -> 1
B153: =IF(A153="","",'Data input'!B153) ->  | C153: =IF($A153="","",VLOOKUP($A153,'Data input'!$A$2:$E$201,COLUMN(C152),FALSE)) ->  | D153: =IF($A153="","",VLOOKUP($A153,'Data input'!$A$2:$E$201,COLUMN(D152),FALSE)) ->  | E153: =IF($A153="","",VLOOKUP($A153,'Data input'!$A$2:$E$201,COLUMN(E152),FALSE)) ->  | L153: 152 | M153: 1.030510821 | N153: =IF(L153="","",IF(M153<Results!D$12,1,0)) -> 1
B154: =IF(A154="","",'Data input'!B154) ->  | C154: =IF($A154="","",VLOOKUP($A154,'Data input'!$A$2:$E$201,COLUMN(C153),FALSE)) ->  | D154: =IF($A154="","",VLOOKUP($A154,'Data input'!$A$2:$E$201,COLUMN(D153),FALSE)) ->  | E154: =IF($A154="","",VLOOKUP($A154,'Data input'!$A$2:$E$201,COLUMN(E153),FALSE)) ->  | L154: 153 | M154: 1.052049265 | N154: =IF(L154="","",IF(M154<Results!D$12,1,0)) -> 0
B155: =IF(A155="","",'Data input'!B155) ->  | C155: =IF($A155="","",VLOOKUP($A155,'Data input'!$A$2:$E$201,COLUMN(C154),FALSE)) ->  | D155: =IF($A155="","",VLOOKUP($A155,'Data input'!$A$2:$E$201,COLUMN(D154),FALSE)) ->  | E155: =IF($A155="","",VLOOKUP($A155,'Data input'!$A$2:$E$201,COLUMN(E154),FALSE)) ->  | L155: 154 | M155: 1.028589293 | N155: =IF(L155="","",IF(M155<Results!D$12,1,0)) -> 1
B156: =IF(A156="","",'Data input'!B156) ->  | C156: =IF($A156="","",VLOOKUP($A156,'Data input'!$A$2:$E$201,COLUMN(C155),FALSE)) ->  | D156: =IF($A156="","",VLOOKUP($A156,'Data input'!$A$2:$E$201,COLUMN(D155),FALSE)) ->  | E156: =IF($A156="","",VLOOKUP($A156,'Data input'!$A$2:$E$201,COLUMN(E155),FALSE)) ->  | L156: 155 | M156: 1.042635728 | N156: =IF(L156="","",IF(M156<Results!D$12,1,0)) -> 0
B157: =IF(A157="","",'Data input'!B157) ->  | C157: =IF($A157="","",VLOOKUP($A157,'Data input'!$A$2:$E$201,COLUMN(C156),FALSE)) ->  | D157: =IF($A157="","",VLOOKUP($A157,'Data input'!$A$2:$E$201,COLUMN(D156),FALSE)) ->  | E157: =IF($A157="","",VLOOKUP($A157,'Data input'!$A$2:$E$201,COLUMN(E156),FALSE)) ->  | L157: 156 | M157: 1.028165737 | N157: =IF(L157="","",IF(M157<Results!D$12,1,0)) -> 1
B158: =IF(A158="","",'Data input'!B158) ->  | C158: =IF($A158="","",VLOOKUP($A158,'Data input'!$A$2:$E$201,COLUMN(C157),FALSE)) ->  | D158: =IF($A158="","",VLOOKUP($A158,'Data input'!$A$2:$E$201,COLUMN(D157),FALSE)) ->  | E158: =IF($A158="","",VLOOKUP($A158,'Data input'!$A$2:$E$201,COLUMN(E157),FALSE)) ->  | L158: 157 | M158: 1.029361757 | N158: =IF(L158="","",IF(M158<Results!D$12,1,0)) -> 1
B159: =IF(A159="","",'Data input'!B159) ->  | C159: =IF($A159="","",VLOOKUP($A159,'Data input'!$A$2:$E$201,COLUMN(C158),FALSE)) ->  | D159: =IF($A159="","",VLOOKUP($A159,'Data input'!$A$2:$E$201,COLUMN(D158),FALSE)) ->  | E159: =IF($A159="","",VLOOKUP($A159,'Data input'!$A$2:$E$201,COLUMN(E158),FALSE)) ->  | L159: 158 | M159: 1.043894717 | N159: =IF(L159="","",IF(M159<Results!D$12,1,0)) -> 0
B160: =IF(A160="","",'Data input'!B160) ->  | C160: =IF($A160="","",VLOOKUP($A160,'Data input'!$A$2:$E$201,COLUMN(C159),FALSE)) ->  | D160: =IF($A160="","",VLOOKUP($A160,'Data input'!$A$2:$E$201,COLUMN(D159),FALSE)) ->  | E160: =IF($A160="","",VLOOKUP($A160,'Data input'!$A$2:$E$201,COLUMN(E159),FALSE)) ->  | L160: 159 | M160: 1.020460547 | N160: =IF(L160="","",IF(M160<Results!D$12,1,0)) -> 1
B161: =IF(A161="","",'Data input'!B161) ->  | C161: =IF($A161="","",VLOOKUP($A161,'Data input'!$A$2:$E$201,COLUMN(C160),FALSE)) ->  | D161: =IF($A161="","",VLOOKUP($A161,'Data input'!$A$2:$E$201,COLUMN(D160),FALSE)) ->  | E161: =IF($A161="","",VLOOKUP($A161,'Data input'!$A$2:$E$201,COLUMN(E160),FALSE)) ->  | L161: 160 | M161: 1.024131339 | N161: =IF(L161="","",IF(M161<Results!D$12,1,0)) -> 1
B162: =IF(A162="","",'Data input'!B162) ->  | C162: =IF($A162="","",VLOOKUP($A162,'Data input'!$A$2:$E$201,COLUMN(C161),FALSE)) ->  | D162: =IF($A162="","",VLOOKUP($A162,'Data input'!$A$2:$E$201,COLUMN(D161),FALSE)) ->  | E162: =IF($A162="","",VLOOKUP($A162,'Data input'!$A$2:$E$201,COLUMN(E161),FALSE)) ->  | L162: 161 | M162: 1.037228437 | N162: =IF(L162="","",IF(M162<Results!D$12,1,0)) -> 1
B163: =IF(A163="","",'Data input'!B163) ->  | C163: =IF($A163="","",VLOOKUP($A163,'Data input'!$A$2:$E$201,COLUMN(C162),FALSE)) ->  | D163: =IF($A163="","",VLOOKUP($A163,'Data input'!$A$2:$E$201,COLUMN(D162),FALSE)) ->  | E163: =IF($A163="","",VLOOKUP($A163,'Data input'!$A$2:$E$201,COLUMN(E162),FALSE)) ->  | L163: 162 | M163: 1.0532388 | N163: =IF(L163="","",IF(M163<Results!D$12,1,0)) -> 0
B164: =IF(A164="","",'Data input'!B164) ->  | C164: =IF($A164="","",VLOOKUP($A164,'Data input'!$A$2:$E$201,COLUMN(C163),FALSE)) ->  | D164: =IF($A164="","",VLOOKUP($A164,'Data input'!$A$2:$E$201,COLUMN(D163),FALSE)) ->  | E164: =IF($A164="","",VLOOKUP($A164,'Data input'!$A$2:$E$201,COLUMN(E163),FALSE)) ->  | L164: 163 | M164: 1.042141077 | N164: =IF(L164="","",IF(M164<Results!D$12,1,0)) -> 0
B165: =IF(A165="","",'Data input'!B165) ->  | C165: =IF($A165="","",VLOOKUP($A165,'Data input'!$A$2:$E$201,COLUMN(C164),FALSE)) ->  | D165: =IF($A165="","",VLOOKUP($A165,'Data input'!$A$2:$E$201,COLUMN(D164),FALSE)) ->  | E165: =IF($A165="","",VLOOKUP($A165,'Data input'!$A$2:$E$201,COLUMN(E164),FALSE)) ->  | L165: 164 | M165: 1.02522482 | N165: =IF(L165="","",IF(M165<Results!D$12,1,0)) -> 1
B166: =IF(A166="","",'Data input'!B166) ->  | C166: =IF($A166="","",VLOOKUP($A166,'Data input'!$A$2:$E$201,COLUMN(C165),FALSE)) ->  | D166: =IF($A166="","",VLOOKUP($A166,'Data input'!$A$2:$E$201,COLUMN(D165),FALSE)) ->  | E166: =IF($A166="","",VLOOKUP($A166,'Data input'!$A$2:$E$201,COLUMN(E165),FALSE)) ->  | L166: 165 | M166: 1.011093502 | N166: =IF(L166="","",IF(M166<Results!D$12,1,0)) -> 1
B167: =IF(A167="","",'Data input'!B167) ->  | C167: =IF($A167="","",VLOOKUP($A167,'Data input'!$A$2:$E$201,COLUMN(C166),FALSE)) ->  | D167: =IF($A167="","",VLOOKUP($A167,'Data input'!$A$2:$E$201,COLUMN(D166),FALSE)) ->  | E167: =IF($A167="","",VLOOKUP($A167,'Data input'!$A$2:$E$201,COLUMN(E166),FALSE)) ->  | L167: 166 | M167: 1.04396496 | N167: =IF(L167="","",IF(M167<Results!D$12,1,0)) -> 0
B168: =IF(A168="","",'Data input'!B168) ->  | C168: =IF($A168="","",VLOOKUP($A168,'Data input'!$A$2:$E$201,COLUMN(C167),FALSE)) ->  | D168: =IF($A168="","",VLOOKUP($A168,'Data input'!$A$2:$E$201,COLUMN(D167),FALSE)) ->  | E168: =IF($A168="","",VLOOKUP($A168,'Data input'!$A$2:$E$201,COLUMN(E167),FALSE)) ->  | L168: 167 | M168: 1.074532276 | N168: =IF(L168="","",IF(M168<Results!D$12,1,0)) -> 0
B169: =IF(A169="","",'Data input'!B169) ->  | C169: =IF($A169="","",VLOOKUP($A169,'Data input'!$A$2:$E$201,COLUMN(C168),FALSE)) ->  | D169: =IF($A169="","",VLOOKUP($A169,'Data input'!$A$2:$E$201,COLUMN(D168),FALSE)) ->  | E169: =IF($A169="","",VLOOKUP($A169,'Data input'!$A$2:$E$201,COLUMN(E168),FALSE)) ->  | L169: 168 | M169: 1.02265697 | N169: =IF(L169="","",IF(M169<Results!D$12,1,0)) -> 1
B170: =IF(A170="","",'Data input'!B170) ->  | C170: =IF($A170="","",VLOOKUP($A170,'Data input'!$A$2:$E$201,COLUMN(C169),FALSE)) ->  | D170: =IF($A170="","",VLOOKUP($A170,'Data input'!$A$2:$E$201,COLUMN(D169),FALSE)) ->  | E170: =IF($A170="","",VLOOKUP($A170,'Data input'!$A$2:$E$201,COLUMN(E169),FALSE)) ->  | L170: 169 | M170: 1.05138761 | N170: =IF(L170="","",IF(M170<Results!D$12,1,0)) -> 0
B171: =IF(A171="","",'Data input'!B171) ->  | C171: =IF($A171="","",VLOOKUP($A171,'Data input'!$A$2:$E$201,COLUMN(C170),FALSE)) ->  | D171: =IF($A171="","",VLOOKUP($A171,'Data input'!$A$2:$E$201,COLUMN(D170),FALSE)) ->  | E171: =IF($A171="","",VLOOKUP($A171,'Data input'!$A$2:$E$201,COLUMN(E170),FALSE)) ->  | L171: 170 | M171: 1.046548343 | N171: =IF(L171="","",IF(M171<Results!D$12,1,0)) -> 0
B172: =IF(A172="","",'Data input'!B172) ->  | C172: =IF($A172="","",VLOOKUP($A172,'Data input'!$A$2:$E$201,COLUMN(C171),FALSE)) ->  | D172: =IF($A172="","",VLOOKUP($A172,'Data input'!$A$2:$E$201,COLUMN(D171),FALSE)) ->  | E172: =IF($A172="","",VLOOKUP($A172,'Data input'!$A$2:$E$201,COLUMN(E171),FALSE)) ->  | L172: 171 | M172: 1.015317728 | N172: =IF(L172="","",IF(M172<Results!D$12,1,0)) -> 1
B173: =IF(A173="","",'Data input'!B173) ->  | C173: =IF($A173="","",VLOOKUP($A173,'Data input'!$A$2:$E$201,COLUMN(C172),FALSE)) ->  | D173: =IF($A173="","",VLOOKUP($A173,'Data input'!$A$2:$E$201,COLUMN(D172),FALSE)) ->  | E173: =IF($A173="","",VLOOKUP($A173,'Data input'!$A$2:$E$201,COLUMN(E172),FALSE)) ->  | L173: 172 | M173: 1.039386823 | N173: =IF(L173="","",IF(M173<Results!D$12,1,0)) -> 0
B174: =IF(A174="","",'Data input'!B174) ->  | C174: =IF($A174="","",VLOOKUP($A174,'Data input'!$A$2:$E$201,COLUMN(C173),FALSE)) ->  | D174: =IF($A174="","",VLOOKUP($A174,'Data input'!$A$2:$E$201,COLUMN(D173),FALSE)) ->  | E174: =IF($A174="","",VLOOKUP($A174,'Data input'!$A$2:$E$201,COLUMN(E173),FALSE)) ->  | L174: 173 | M174: 1.028168669 | N174: =IF(L174="","",IF(M174<Results!D$12,1,0)) -> 1
B175: =IF(A175="","",'Data input'!B175) ->  | C175: =IF($A175="","",VLOOKUP($A175,'Data input'!$A$2:$E$201,COLUMN(C174),FALSE)) ->  | D175: =IF($A175="","",VLOOKUP($A175,'Data input'!$A$2:$E$201,COLUMN(D174),FALSE)) ->  | E175: =IF($A175="","",VLOOKUP($A175,'Data input'!$A$2:$E$201,COLUMN(E174),FALSE)) ->  | L175: 174 | M175: 1.034970754 | N175: =IF(L175="","",IF(M175<Results!D$12,1,0)) -> 1
B176: =IF(A176="","",'Data input'!B176) ->  | C176: =IF($A176="","",VLOOKUP($A176,'Data input'!$A$2:$E$201,COLUMN(C175),FALSE)) ->  | D176: =IF($A176="","",VLOOKUP($A176,'Data input'!$A$2:$E$201,COLUMN(D175),FALSE)) ->  | E176: =IF($A176="","",VLOOKUP($A176,'Data input'!$A$2:$E$201,COLUMN(E175),FALSE)) ->  | L176: 175 | M176: 1.048114033 | N176: =IF(L176="","",IF(M176<Results!D$12,1,0)) -> 0
B177: =IF(A177="","",'Data input'!B177) ->  | C177: =IF($A177="","",VLOOKUP($A177,'Data input'!$A$2:$E$201,COLUMN(C176),FALSE)) ->  | D177: =IF($A177="","",VLOOKUP($A177,'Data input'!$A$2:$E$201,COLUMN(D176),FALSE)) ->  | E177: =IF($A177="","",VLOOKUP($A177,'Data input'!$A$2:$E$201,COLUMN(E176),FALSE)) ->  | L177: 176 | M177: 1.033597756 | N177: =IF(L177="","",IF(M177<Results!D$12,1,0)) -> 1
B178: =IF(A178="","",'Data input'!B178) ->  | C178: =IF($A178="","",VLOOKUP($A178,'Data input'!$A$2:$E$201,COLUMN(C177),FALSE)) ->  | D178: =IF($A178="","",VLOOKUP($A178,'Data input'!$A$2:$E$201,COLUMN(D177),FALSE)) ->  | E178: =IF($A178="","",VLOOKUP($A178,'Data input'!$A$2:$E$201,COLUMN(E177),FALSE)) ->  | L178: 177 | M178: 1.040497948 | N178: =IF(L178="","",IF(M178<Results!D$12,1,0)) -> 0
B179: =IF(A179="","",'Data input'!B179) ->  | C179: =IF($A179="","",VLOOKUP($A179,'Data input'!$A$2:$E$201,COLUMN(C178),FALSE)) ->  | D179: =IF($A179="","",VLOOKUP($A179,'Data input'!$A$2:$E$201,COLUMN(D178),FALSE)) ->  | E179: =IF($A179="","",VLOOKUP($A179,'Data input'!$A$2:$E$201,COLUMN(E178),FALSE)) ->  | L179: 178 | M179: 1.044504207 | N179: =IF(L179="","",IF(M179<Results!D$12,1,0)) -> 0
B180: =IF(A180="","",'Data input'!B180) ->  | C180: =IF($A180="","",VLOOKUP($A180,'Data input'!$A$2:$E$201,COLUMN(C179),FALSE)) ->  | D180: =IF($A180="","",VLOOKUP($A180,'Data input'!$A$2:$E$201,COLUMN(D179),FALSE)) ->  | E180: =IF($A180="","",VLOOKUP($A180,'Data input'!$A$2:$E$201,COLUMN(E179),FALSE)) ->  | L180: 179 | M180: 1.04583276 | N180: =IF(L180="","",IF(M180<Results!D$12,1,0)) -> 0
B181: =IF(A181="","",'Data input'!B181) ->  | C181: =IF($A181="","",VLOOKUP($A181,'Data input'!$A$2:$E$201,COLUMN(C180),FALSE)) ->  | D181: =IF($A181="","",VLOOKUP($A181,'Data input'!$A$2:$E$201,COLUMN(D180),FALSE)) ->  | E181: =IF($A181="","",VLOOKUP($A181,'Data input'!$A$2:$E$201,COLUMN(E180),FALSE)) ->  | L181: 180 | M181: 1.070494195 | N181: =IF(L181="","",IF(M181<Results!D$12,1,0)) -> 0
B182: =IF(A182="","",'Data input'!B182) ->  | C182: =IF($A182="","",VLOOKUP($A182,'Data input'!$A$2:$E$201,COLUMN(C181),FALSE)) ->  | D182: =IF($A182="","",VLOOKUP($A182,'Data input'!$A$2:$E$201,COLUMN(D181),FALSE)) ->  | E182: =IF($A182="","",VLOOKUP($A182,'Data input'!$A$2:$E$201,COLUMN(E181),FALSE)) ->  | L182: 181 | M182: 1.067294079 | N182: =IF(L182="","",IF(M182<Results!D$12,1,0)) -> 0
B183: =IF(A183="","",'Data input'!B183) ->  | C183: =IF($A183="","",VLOOKUP($A183,'Data input'!$A$2:$E$201,COLUMN(C182),FALSE)) ->  | D183: =IF($A183="","",VLOOKUP($A183,'Data input'!$A$2:$E$201,COLUMN(D182),FALSE)) ->  | E183: =IF($A183="","",VLOOKUP($A183,'Data input'!$A$2:$E$201,COLUMN(E182),FALSE)) ->  | L183: 182 | M183: 1.034374735 | N183: =IF(L183="","",IF(M183<Results!D$12,1,0)) -> 1
B184: =IF(A184="","",'Data input'!B184) ->  | C184: =IF($A184="","",VLOOKUP($A184,'Data input'!$A$2:$E$201,COLUMN(C183),FALSE)) ->  | D184: =IF($A184="","",VLOOKUP($A184,'Data input'!$A$2:$E$201,COLUMN(D183),FALSE)) ->  | E184: =IF($A184="","",VLOOKUP($A184,'Data input'!$A$2:$E$201,COLUMN(E183),FALSE)) ->  | L184: 183 | M184: 1.033795268 | N184: =IF(L184="","",IF(M184<Results!D$12,1,0)) -> 1
B185: =IF(A185="","",'Data input'!B185) ->  | C185: =IF($A185="","",VLOOKUP($A185,'Data input'!$A$2:$E$201,COLUMN(C184),FALSE)) ->  | D185: =IF($A185="","",VLOOKUP($A185,'Data input'!$A$2:$E$201,COLUMN(D184),FALSE)) ->  | E185: =IF($A185="","",VLOOKUP($A185,'Data input'!$A$2:$E$201,COLUMN(E184),FALSE)) ->  | L185: 184 | M185: 0.997983522 | N185: =IF(L185="","",IF(M185<Results!D$12,1,0)) -> 1
B186: =IF(A186="","",'Data input'!B186) ->  | C186: =IF($A186="","",VLOOKUP($A186,'Data input'!$A$2:$E$201,COLUMN(C185),FALSE)) ->  | D186: =IF($A186="","",VLOOKUP($A186,'Data input'!$A$2:$E$201,COLUMN(D185),FALSE)) ->  | E186: =IF($A186="","",VLOOKUP($A186,'Data input'!$A$2:$E$201,COLUMN(E185),FALSE)) ->  | L186: 185 | M186: 1.054050088 | N186: =IF(L186="","",IF(M186<Results!D$12,1,0)) -> 0
B187: =IF(A187="","",'Data input'!B187) ->  | C187: =IF($A187="","",VLOOKUP($A187,'Data input'!$A$2:$E$201,COLUMN(C186),FALSE)) ->  | D187: =IF($A187="","",VLOOKUP($A187,'Data input'!$A$2:$E$201,COLUMN(D186),FALSE)) ->  | E187: =IF($A187="","",VLOOKUP($A187,'Data input'!$A$2:$E$201,COLUMN(E186),FALSE)) ->  | L187: 186 | M187: 1.030203794 | N187: =IF(L187="","",IF(M187<Results!D$12,1,0)) -> 1
B188: =IF(A188="","",'Data input'!B188) ->  | C188: =IF($A188="","",VLOOKUP($A188,'Data input'!$A$2:$E$201,COLUMN(C187),FALSE)) ->  | D188: =IF($A188="","",VLOOKUP($A188,'Data input'!$A$2:$E$201,COLUMN(D187),FALSE)) ->  | E188: =IF($A188="","",VLOOKUP($A188,'Data input'!$A$2:$E$201,COLUMN(E187),FALSE)) ->  | L188: 187 | M188: 1.023219534 | N188: =IF(L188="","",IF(M188<Results!D$12,1,0)) -> 1
B189: =IF(A189="","",'Data input'!B189) ->  | C189: =IF($A189="","",VLOOKUP($A189,'Data input'!$A$2:$E$201,COLUMN(C188),FALSE)) ->  | D189: =IF($A189="","",VLOOKUP($A189,'Data input'!$A$2:$E$201,COLUMN(D188),FALSE)) ->  | E189: =IF($A189="","",VLOOKUP($A189,'Data input'!$A$2:$E$201,COLUMN(E188),FALSE)) ->  | L189: 188 | M189: 1.017339152 | N189: =IF(L189="","",IF(M189<Results!D$12,1,0)) -> 1
B190: =IF(A190="","",'Data input'!B190) ->  | C190: =IF($A190="","",VLOOKUP($A190,'Data input'!$A$2:$E$201,COLUMN(C189),FALSE)) ->  | D190: =IF($A190="","",VLOOKUP($A190,'Data input'!$A$2:$E$201,COLUMN(D189),FALSE)) ->  | E190: =IF($A190="","",VLOOKUP($A190,'Data input'!$A$2:$E$201,COLUMN(E189),FALSE)) ->  | L190: 189 | M190: 1.043147232 | N190: =IF(L190="","",IF(M190<Results!D$12,1,0)) -> 0
B191: =IF(A191="","",'Data input'!B191) ->  | C191: =IF($A191="","",VLOOKUP($A191,'Data input'!$A$2:$E$201,COLUMN(C190),FALSE)) ->  | D191: =IF($A191="","",VLOOKUP($A191,'Data input'!$A$2:$E$201,COLUMN(D190),FALSE)) ->  | E191: =IF($A191="","",VLOOKUP($A191,'Data input'!$A$2:$E$201,COLUMN(E190),FALSE)) ->  | L191: 190 | M191: 1.040041669 | N191: =IF(L191="","",IF(M191<Results!D$12,1,0)) -> 0
B192: =IF(A192="","",'Data input'!B192) ->  | C192: =IF($A192="","",VLOOKUP($A192,'Data input'!$A$2:$E$201,COLUMN(C191),FALSE)) ->  | D192: =IF($A192="","",VLOOKUP($A192,'Data input'!$A$2:$E$201,COLUMN(D191),FALSE)) ->  | E192: =IF($A192="","",VLOOKUP($A192,'Data input'!$A$2:$E$201,COLUMN(E191),FALSE)) ->  | L192: 191 | M192: 1.03962012 | N192: =IF(L192="","",IF(M192<Results!D$12,1,0)) -> 0
B193: =IF(A193="","",'Data input'!B193) ->  | C193: =IF($A193="","",VLOOKUP($A193,'Data input'!$A$2:$E$201,COLUMN(C192),FALSE)) ->  | D193: =IF($A193="","",VLOOKUP($A193,'Data input'!$A$2:$E$201,COLUMN(D192),FALSE)) ->  | E193: =IF($A193="","",VLOOKUP($A193,'Data input'!$A$2:$E$201,COLUMN(E192),FALSE)) ->  | L193: 192 | M193: 1.042140707 | N193: =IF(L193="","",IF(M193<Results!D$12,1,0)) -> 0
B194: =IF(A194="","",'Data input'!B194) ->  | C194: =IF($A194="","",VLOOKUP($A194,'Data input'!$A$2:$E$201,COLUMN(C193),FALSE)) ->  | D194: =IF($A194="","",VLOOKUP($A194,'Data input'!$A$2:$E$201,COLUMN(D193),FALSE)) ->  | E194: =IF($A194="","",VLOOKUP($A194,'Data input'!$A$2:$E$201,COLUMN(E193),FALSE)) ->  | L194: 193 | M194: 1.032846507 | N194: =IF(L194="","",IF(M194<Results!D$12,1,0)) -> 1
B195: =IF(A195="","",'Data input'!B195) ->  | C195: =IF($A195="","",VLOOKUP($A195,'Data input'!$A$2:$E$201,COLUMN(C194),FALSE)) ->  | D195: =IF($A195="","",VLOOKUP($A195,'Data input'!$A$2:$E$201,COLUMN(D194),FALSE)) ->  | E195: =IF($A195="","",VLOOKUP($A195,'Data input'!$A$2:$E$201,COLUMN(E194),FALSE)) ->  | L195: =IF(M195="","",ROW(L195)-1) -> 194 | M195: 1.053602757 | N195: =IF(L195="","",IF(M195<Results!D$12,1,0)) -> 0 | P195: =IF(A195="","",ROW(A195)-1) ->  | R195: =IF(P195="","",(AVERAGE(Q$2:Q$201)-Q195)^3) ->  | S195: =IF(P195="","",(AVERAGE(Q$2:Q$201)-Q195)^2) -> 
B196: =IF(A196="","",'Data input'!B196) ->  | C196: =IF($A196="","",VLOOKUP($A196,'Data input'!$A$2:$E$201,COLUMN(C195),FALSE)) ->  | D196: =IF($A196="","",VLOOKUP($A196,'Data input'!$A$2:$E$201,COLUMN(D195),FALSE)) ->  | E196: =IF($A196="","",VLOOKUP($A196,'Data input'!$A$2:$E$201,COLUMN(E195),FALSE)) ->  | L196: 195 | M196: 1.044406029 | N196: =IF(L196="","",IF(M196<Results!D$12,1,0)) -> 0
B197: =IF(A197="","",'Data input'!B197) ->  | C197: =IF($A197="","",VLOOKUP($A197,'Data input'!$A$2:$E$201,COLUMN(C196),FALSE)) ->  | D197: =IF($A197="","",VLOOKUP($A197,'Data input'!$A$2:$E$201,COLUMN(D196),FALSE)) ->  | E197: =IF($A197="","",VLOOKUP($A197,'Data input'!$A$2:$E$201,COLUMN(E196),FALSE)) ->  | L197: 196 | M197: 1.020712079 | N197: =IF(L197="","",IF(M197<Results!D$12,1,0)) -> 1
B198: =IF(A198="","",'Data input'!B198) ->  | C198: =IF($A198="","",VLOOKUP($A198,'Data input'!$A$2:$E$201,COLUMN(C197),FALSE)) ->  | D198: =IF($A198="","",VLOOKUP($A198,'Data input'!$A$2:$E$201,COLUMN(D197),FALSE)) ->  | E198: =IF($A198="","",VLOOKUP($A198,'Data input'!$A$2:$E$201,COLUMN(E197),FALSE)) ->  | L198: 197 | M198: 1.050288061 | N198: =IF(L198="","",IF(M198<Results!D$12,1,0)) -> 0
B199: =IF(A199="","",'Data input'!B199) ->  | C199: =IF($A199="","",VLOOKUP($A199,'Data input'!$A$2:$E$201,COLUMN(C198),FALSE)) ->  | D199: =IF($A199="","",VLOOKUP($A199,'Data input'!$A$2:$E$201,COLUMN(D198),FALSE)) ->  | E199: =IF($A199="","",VLOOKUP($A199,'Data input'!$A$2:$E$201,COLUMN(E198),FALSE)) ->  | L199: 198 | M199: 1.026068423 | N199: =IF(L199="","",IF(M199<Results!D$12,1,0)) -> 1
B200: =IF(A200="","",'Data input'!B200) ->  | C200: =IF($A200="","",VLOOKUP($A200,'Data input'!$A$2:$E$201,COLUMN(C199),FALSE)) ->  | D200: =IF($A200="","",VLOOKUP($A200,'Data input'!$A$2:$E$201,COLUMN(D199),FALSE)) ->  | E200: =IF($A200="","",VLOOKUP($A200,'Data input'!$A$2:$E$201,COLUMN(E199),FALSE)) ->  | L200: 199 | M200: 1.022056671 | N200: =IF(L200="","",IF(M200<Results!D$12,1,0)) -> 1
... 4300 more rows
